Doc Date,Reference,Line,Line Value,Supplier Name,Date To Ledger,Paid Date,GL Code,Cost Code,Description,Subjective,Description,PRL Narrative
12/02/2014,0010253710,001,"343,000.00",Black Marble Ltd,19/02/2014,05/03/2014,Y7C00000850000,Y7C,METIS,8500,Capital Expenditure Suspense,Development to date of new Windows 8.1Operation Policing Application
28/02/2014,0010254969,001,"154,600.34",Adcock Refrigeration & Air Conditioning,19/03/2014,19/03/2014,F8BB4600850000,F8B,MajRepairsPlan,8500,Capital Expenditure Suspense,Thorpewood custody ventilationreplace/refurbishment contract.
20/03/2014,0010256119,001,"118,069.76",Specialist Computer Centres Plc,26/03/2014,26/03/2014,T2F00000351000,T2F,Information Technology Service Delivery,3510,Computer Hardware - Purchase,"Servers, components amd software"
01/03/2014,0010254856,001,"74,694.94",G4S Forensic & Medical Services Ltd,13/03/2014,19/03/2014,Y6A00000341200,Y6A,Corporate CostsMiscellaneousCentral Costs,3412,Doctors Fees,Medical & Sexual Offence Services -March 2014
20/03/2014,0010255777,001,"64,593.57",Pcc Hertfordshire,26/03/2014,26/03/2014,T2FTNZ00850000,T2F,Information Technology Service Delivery,8500,Capital Expenditure Suspense,2013/14 share of tri-force contributionto capital purchase cost of Command &Control including 15% retainer from2012/13
13/03/2014,0010255426,001,"53,765.00",Cambridgeshire & Peterborough Probation,19/03/2014,19/03/2014,KAA00000373000,KAA,Investigations -Management,3730,Contributions - General,Police Contribution to MAPPA 2013-14
21/03/2014,0010255840,001,"46,725.48",Police Mutual Assurance Society Ltd,25/03/2014,26/03/2014,Z9A99900941600,Z9A,Balance Sheet,9416,Current LiabilitiesCreditorsEmployees Voluntary Deductions Control,PAYROLL
06/03/2014,0010255356,001,"41,699.76",Specialist Computer Centres Plc,17/03/2014,19/03/2014,T2FTQD00351500,T2F,Information Technology Service Delivery,3515,Computer Software Licence Costs,NSPIS CuCP Support Charges 
11/02/2014,0010254123,001,"38,815.81",Airwave Solutions Ltd (Decision Focus),21/02/2014,27/02/2014,T5ATHB00354400,T5A,Information Technology Airwave,3544,Airwave - Running Costs,RENTAL CHARGES
11/02/2014,0010255201,001,"32,632.50",Weightman Vizards,13/03/2014,12/03/2014,E1A00000343200,E1A,Strategic Co-OrdinationDirectorate,3432,Legal Fees - Civil,PROFESSIONAL SERVICES
21/02/2014,0010254963,002,"31,490.15",Bt Plc,13/03/2014,12/03/2014,T2G00000356100,T2G,Information Technology Serv Delivery2,3561,Telephone Rental,SIP Rental 01/10/13 to 28/02/14
26/02/2014,0010254446,001,"31,252.40",A P D Communications Ltd,05/03/2014,19/03/2014,T5A00000354200,T5A,Information Technology Airwave,3542,Airwave - Equipment Maintenance,Support and Maintenance for Cortexsystem 
05/03/2014,0010255140,001,"29,744.96",V J Skerry Limited,19/03/2014,19/03/2014,T2FTVHB1850000,T2F,Information Technology Service Delivery,8500,Capital Expenditure Suspense,Network Cabling Installation for Wifi
02/03/2014,0010255492,005,"27,868.34",Oracle Corporation Uk Limited,26/03/2014,26/03/2014,T2DTCH00351500,T2D,Information Technology Projects & Applications,3515,Computer Software Licence Costs,1838 x Oracle Database EnterpriseEdition 
21/03/2014,0010255834,001,"27,510.48",Police Federation,25/03/2014,26/03/2014,Z9A99900941600,Z9A,Balance Sheet,9416,Current LiabilitiesCreditorsEmployees Voluntary Deductions Control,PAYROLL
25/02/2014,0010254645,001,"25,880.00",Virgin Media Business Limited,17/03/2014,19/03/2014,T2FTGH00351400,T2F,Information Technology Service Delivery,3514,Computer Software Development & Maintenance,Big Red Internet Access Thorpe Wood &Headquarters
07/02/2014,0010254484,001,"25,183.81",Home Office,24/03/2014,26/03/2014,KDA00000356300,KDA,Investigations -Authorities Bureau,3563,Subscriber Checks,ORDER TO CASH TEAM
07/03/2014,0010255529,001,"24,570.00",Nhs England East Anglia Area Team,20/03/2014,26/03/2014,W6A00000343100,W6A,Healthcare Commissioning Partnership Board,3431,Consultants - Non-Operational,"Project support to the HealthcareCommissioning Partnership Board forBeds, Cambs, Essex and Herts during2013/14"
21/02/2014,0010254963,001,"23,726.44",Bt Plc,13/03/2014,12/03/2014,T2FTEF00350200,T2F,Information Technology Service Delivery,3502,Comms Equipment - C122 Line Rental,SIP Set up Charges Non Recurring
20/03/2014,0010255772,001,"22,676.20",Open Text Uk Ltd,26/03/2014,26/03/2014,T2DTIP00351400,T2D,Information Technology Projects & Applications,3514,Computer Software Development & Maintenance,Genio Renewal Maintenance
18/03/2014,0010255741,001,"21,366.66",Bmw Group Authorities Dept;,26/03/2014,26/03/2014,F6AVAA00850000,F6A,FleetHeadquarters,8500,Capital Expenditure Suspense,Vehicle costs
28/02/2014,0010254879,001,"20,985.60",Solo Service Group Ltd,13/03/2014,19/03/2014,LLA00000160000,LLA,Local Policing ,1600,Contract Cleaning,CONTRACT CLEANING LOCAL POLICING -FEBRUARY 2014
21/03/2014,0010255837,001,"20,970.55",Phillip Williams & Co (Group Insurance),25/03/2014,26/03/2014,Z9A99900941600,Z9A,Balance Sheet,9416,Current LiabilitiesCreditorsEmployees Voluntary Deductions Control,PAYROLL
21/02/2014,0010255174,001,"20,415.00",Home Office,25/03/2014,26/03/2014,T2FTGT00351400,T2F,Information Technology Service Delivery,3514,Computer Software Development & Maintenance,Livescan Charges 
17/03/2014,0010255753,001,"19,683.40",Bt Convergent Solutions Ltd,26/03/2014,26/03/2014,T2FTFN00351200,T2F,Information Technology Service Delivery,3512,Computer Hardware - Maintenance,Red Box Support & Maintenance Renewal
10/02/2014,0010253648,001,"19,525.00",Black Marble Ltd,18/02/2014,05/03/2014,Y7C00000850000,Y7C,METIS,8500,Capital Expenditure Suspense,Completed Consultancy: 26 5 days(SharePoint)
24/03/2014,0010255862,001,"18,866.20",Phillip Williams & Co (Group Insurance),25/03/2014,26/03/2014,Z9A99900941600,Z9A,Balance Sheet,9416,Current LiabilitiesCreditorsEmployees Voluntary Deductions Control,PENSIONS.MAR.2014
01/03/2014,0010255447,002,"18,831.57",O2 Telefonica Uk Ltd,17/03/2014,19/03/2014,T2GTQG00350300,T2G,Information Technology Serv Delivery2,3503,Comms Equipment - Blackberry Charges,Blackberry Charges -  Rental
26/02/2014,0010254833,004,"18,588.35",Pcc Hertfordshire,26/03/2014,26/03/2014,G4AG8A00080100,G4A,Training & DevelopmentTraining Courses,0801,Training - Police Officers - External,Training Costs 2013-14 - Firearms
11/02/2014,0010254123,002,"17,374.83",Airwave Solutions Ltd (Decision Focus),21/02/2014,27/02/2014,T5ATHE00354400,T5A,Information Technology Airwave,3544,Airwave - Running Costs,RENTAL CHARGES
03/03/2014,0010255362,001,"17,279.50",Specialist Computer Centres Plc,24/03/2014,26/03/2014,T2F00000353000,T2F,Information Technology Service Delivery,3530,Network Infrastructure Equipment,"AIR-CAP2602I-E-K9 802.11n CAPw/CleanAir, 3x4:3SS, Mod, Int Ant, E RegDomain"
03/03/2014,0010255153,001,"17,000.00",S Yaffy Limited,13/03/2014,19/03/2014,W5B00000320000,W5B,Collaborative Services - Procurement - Stores,3200,Clothing & Uniforms - General,POLICE Traffic Jackets
01/03/2014,0010255104,001,"16,784.30",Edf Energy 1 Limited,13/03/2014,12/03/2014,F5AB2400110000,F5A,Estates & Facilities ManagementEstates,1100,Electricity,CAMBRIDGESHIRE HQ
02/03/2014,0010255492,004,"16,678.54",Oracle Corporation Uk Limited,26/03/2014,26/03/2014,T2DTCH00351500,T2D,Information Technology Projects & Applications,3515,Computer Software Licence Costs,2200 Internet Application ServerEnterprise Edition
27/02/2014,0010254916,001,"16,313.40",Hyundai Motor Uk Limited,26/03/2014,26/03/2014,F6AVAA00850000,F6A,FleetHeadquarters,8500,Capital Expenditure Suspense,Vehicle costs
27/02/2014,0010254915,001,"16,313.40",Hyundai Motor Uk Limited,26/03/2014,26/03/2014,F6AVAA00850000,F6A,FleetHeadquarters,8500,Capital Expenditure Suspense,Vehicle costs
24/03/2014,0010255866,001,"15,782.45",Police Mutual Assurance Society Ltd,25/03/2014,26/03/2014,Z9A99900941600,Z9A,Balance Sheet,9416,Current LiabilitiesCreditorsEmployees Voluntary Deductions Control,PAYROLL
21/03/2014,0010255887,001,"15,639.24",Experian Ltd,26/03/2014,26/03/2014,T2FTDH00351500,T2F,Information Technology Service Delivery,3515,Computer Software Licence Costs,QuickAddress Full Electoral RegisterName Tracer
21/03/2014,0010255832,001,"15,389.27",Copperpot Credit Union Ltd,25/03/2014,26/03/2014,Z9A99900941600,Z9A,Balance Sheet,9416,Current LiabilitiesCreditorsEmployees Voluntary Deductions Control,PAYROLL
10/03/2014,0010255422,001,"15,311.51",Hyundai Motor Uk Limited,26/03/2014,26/03/2014,F6AVAA00850000,F6A,FleetHeadquarters,8500,Capital Expenditure Suspense,Vehicle costs
10/03/2014,0010255423,001,"14,837.82",Hyundai Motor Uk Limited,26/03/2014,26/03/2014,F6AVAA00850000,F6A,FleetHeadquarters,8500,Capital Expenditure Suspense,Vehicle costs
17/02/2014,0010254283,001,"14,740.12",Ford Motor Company Limited,13/03/2014,12/03/2014,F6AVAA00850000,F6A,FleetHeadquarters,8500,Capital Expenditure Suspense,Vehicle Costs
28/02/2014,0010254880,001,"14,138.05",Solo Service Group Ltd,13/03/2014,19/03/2014,F5A00000160000,F5A,Estates & Facilities ManagementEstates,1600,Contract Cleaning,CONTRACT CLEANING HQ SITES - FEBRUARY2014
11/03/2014,0010255459,001,"13,757.07",Hyundai Motor Uk Limited,26/03/2014,26/03/2014,F6AVAA00850000,F6A,FleetHeadquarters,8500,Capital Expenditure Suspense,Vehicle costs
11/03/2014,0010255460,001,"13,757.07",Hyundai Motor Uk Limited,26/03/2014,26/03/2014,F6AVAA00850000,F6A,FleetHeadquarters,8500,Capital Expenditure Suspense,Vehicle costs
11/03/2014,0010255461,001,"13,757.07",Hyundai Motor Uk Limited,26/03/2014,26/03/2014,F6AVAA00850000,F6A,FleetHeadquarters,8500,Capital Expenditure Suspense,Vehicle costs
27/02/2014,0010254914,001,"13,567.67",Hyundai Motor Uk Limited,26/03/2014,26/03/2014,F6AVAA00850000,F6A,FleetHeadquarters,8500,Capital Expenditure Suspense,Vehicle costs
04/03/2014,0010255154,001,"13,200.00",S Yaffy Limited,13/03/2014,19/03/2014,W5B00000320000,W5B,Collaborative Services - Procurement - Stores,3200,Clothing & Uniforms - General,POLICE Traffic Jacket
28/02/2014,0010255243,001,"12,519.78",Dmi Leisure Ltd,19/03/2014,19/03/2014,F8BB4600850000,F8B,MajRepairsPlan,8500,Capital Expenditure Suspense,"Charge desk for custody at Thorpe Wood.Design, construct and install bespokecharge desk to fit existing location.Remove existing desk and clear from"
06/03/2014,0010255469,001,"11,495.00",Experian Ltd,24/03/2014,26/03/2014,T2GTQE00351500,T2G,Information Technology Serv Delivery2,3515,Computer Software Licence Costs,Mosaic Public Sector Annual License
14/02/2014,0010254540,001,"10,527.48",Guidance Software,03/03/2014,05/03/2014,KAA00000351000,KAA,Investigations -Management,3510,Computer Hardware - Purchase,Encase Forensic V7 ForensicPhysical License x4 @ 1778.29 each* 311310003 Encase Forensic V7 SMS (16%
01/03/2014,0010255106,001,"10,107.50",Edf Energy 1 Limited,13/03/2014,12/03/2014,F5AB4600110000,F5A,Estates & Facilities ManagementEstates,1100,Electricity,THORPE WOOD
27/02/2014,0010255047,001,"9,985.96",Lgc  Limited,07/03/2014,19/03/2014,WGA00000340000,WGA,Scientific Services,3400,Forensic Provider,CASEWORK
05/03/2014,0010255354,001,"9,708.40",Specialist Computer Centres Plc,17/03/2014,19/03/2014,T1A00000351000,T1A,IT Management,3510,Computer Hardware - Purchase,Notebook TPE S1 Yoga 4G 
11/02/2014,0010254123,006,"9,617.53",Airwave Solutions Ltd (Decision Focus),21/02/2014,27/02/2014,T5ATHD00354400,T5A,Information Technology Airwave,3544,Airwave - Running Costs,RENTAL CHARGES
13/02/2014,0010254923,001,"9,583.33",Hyundai Motor Uk Limited,06/03/2014,12/03/2014,F6AVAA00850000,F6A,FleetHeadquarters,8500,Capital Expenditure Suspense,Vehicle Costs
11/02/2014,0010253850,001,"9,574.00",Hyundai Motor Uk Limited,17/03/2014,19/03/2014,F6AVAA00850000,F6A,FleetHeadquarters,8500,Capital Expenditure Suspense,Vehicle Costs
26/02/2014,0010254833,002,"9,530.46",Pcc Hertfordshire,26/03/2014,26/03/2014,G4AG4Z00081100,G4A,Training & DevelopmentTraining Courses,0811,Training - Support Staff - External,Training Costs 2013-14 - SSU
28/02/2014,0010255412,001,"9,250.00",Simunix Ltd,26/03/2014,26/03/2014,T2E00000371100,T2E,Information Technology Central Services,3711,Subscriptions - Corporate,UK Corporate phonebook Subscription
13/02/2014,0010254924,001,"9,166.67",Hyundai Motor Uk Limited,06/03/2014,12/03/2014,F6AVAA00850000,F6A,FleetHeadquarters,8500,Capital Expenditure Suspense,Vehicle Costs
17/03/2014,0010255521,001,"9,100.00",Tactical Safety Responses Ltd,20/03/2014,26/03/2014,LLAWPX00303800,LLA,Local Policing ,3038,Firearms-Purchase-Tasers, TASER 21ft Live OperationalCartridge
02/03/2014,0010255492,006,"9,079.21",Oracle Corporation Uk Limited,26/03/2014,26/03/2014,T2DTCH00351500,T2D,Information Technology Projects & Applications,3515,Computer Software Licence Costs,531 x Internet Application ServerEnterprise Edition
04/03/2014,0010255155,001,"8,993.00",S Yaffy Limited,13/03/2014,19/03/2014,W5B00000320000,W5B,Collaborative Services - Procurement - Stores,3200,Clothing & Uniforms - General,POLICE Fleece - With Radio Clips
02/03/2014,0010255492,007,"8,970.96",Oracle Corporation Uk Limited,26/03/2014,26/03/2014,T2DTCH00351500,T2D,Information Technology Projects & Applications,3515,Computer Software Licence Costs,381 x Oracle Database Enterprise Edition-
21/03/2014,0010255879,001,"8,490.75",A P D Communications Ltd,24/03/2014,26/03/2014,T5A00000354200,T5A,Information Technology Airwave,3542,Airwave - Equipment Maintenance," System Merge, Merge the 3existing CORTEX systems at Thorpewood,Parkside & HQ"
02/03/2014,0010255492,002,"8,488.01",Oracle Corporation Uk Limited,26/03/2014,26/03/2014,T2DTCH00351500,T2D,Information Technology Projects & Applications,3515,Computer Software Licence Costs,350 x Oracle Database Enterprise Edition
10/03/2014,0010255405,001,"8,358.18",Cell Security Ltd,19/03/2014,19/03/2014,F8BB3600850000,F8B,MajRepairsPlan,8500,Capital Expenditure Suspense,Replacement hatches to custody celldoors.
20/03/2014,0010255997,001,"8,085.00",S Yaffy Limited,26/03/2014,26/03/2014,W5B00000320000,W5B,Collaborative Services - Procurement - Stores,3200,Clothing & Uniforms - General,POLICE Light Weight Blousons
17/03/2014,0010255521,002,"7,980.00",Tactical Safety Responses Ltd,20/03/2014,26/03/2014,LLAWPX00303800,LLA,Local Policing ,3038,Firearms-Purchase-Tasers,TX-26701XDPM
14/03/2014,0010255855,001,"7,783.70",Unison,25/03/2014,26/03/2014,Z9A99900941600,Z9A,Balance Sheet,9416,Current LiabilitiesCreditorsEmployees Voluntary Deductions Control,PAYROLL
26/02/2014,0010254837,001,"7,699.00",First Line Maintenance Ltd (Flm),19/03/2014,19/03/2014,T2FTFI00351200,T2F,Information Technology Service Delivery,3512,Computer Hardware - Maintenance,Fax Maintenance (01.04.14  - 31.03.15)
05/03/2014,0010255352,001,"7,684.20",Specialist Computer Centres Plc,17/03/2014,19/03/2014,T1A00000351000,T1A,IT Management,3510,Computer Hardware - Purchase, Notebook TPE S1 Yoga 4G 
25/02/2014,0010254284,006,"7,500.00",Kim Software Solutions Ltd,13/03/2014,19/03/2014,LLA00000081100,LLA,Local Policing ,0811,Training - Support Staff - External,5 x Enquiry Desk Clerk training courses
28/02/2014,0010254933,001,"7,500.00",Nhs Property Services Ltd,13/03/2014,19/03/2014,KCA000H3120000,KCA,Investigations -Public Protection Management,1200,Rents & Leases,Month 11 - Rent for Rivergate Centre(SARC)
12/03/2014,0010255472,001,"7,500.00",Nhs Property Services Ltd,19/03/2014,19/03/2014,KCA000H3120000,KCA,Investigations -Public Protection Management,1200,Rents & Leases,Month 12 - Rent for SARC
14/03/2014,0010255210,001,"7,383.80",Prudential,18/03/2014,19/03/2014,Z9A99900941600,Z9A,Balance Sheet,9416,Current LiabilitiesCreditorsEmployees Voluntary Deductions Control,PAYROLL
13/03/2014,0010255723,001,"7,300.00",The Police Superintendents Of England &,26/03/2014,26/03/2014,A1A00000371200,A1A,A C P O,3712,Subscriptions - Professional,Legal Protection Insurance for theperiod 1st April 2014 to 31st March 2015for members of the PoliceSuperintendents� Association
12/03/2014,0010255785,001,"7,229.25",Specialist Computer Centres Plc,24/03/2014,26/03/2014,T2ETFT00353400,T2E,Information Technology Central Services,3534,Network - Licence Costs, 5/GOV10 IDENTIKEY AUTHSERVER ENTERPEDITION - MAINTENANCE
27/02/2014,0010254737,001,"7,000.00",Sepura Ltd,13/03/2014,19/03/2014,T5ATMR00354100,T5A,Information Technology Airwave,3541,Airwave - Radios, RECHARGABLEBATTERIES
25/02/2014,0010254834,001,"7,000.00",Sepura Ltd,13/03/2014,19/03/2014,T5ATMR00354100,T5A,Information Technology Airwave,3541,Airwave - Radios,RECHARGABLEBATTERIES
07/03/2014,0010255138,001,"6,792.60",A P D Communications Ltd,18/03/2014,19/03/2014,T5A00000354200,T5A,Information Technology Airwave,3542,Airwave - Equipment Maintenance,"Phase 1 - System Merge, Merge the 3existing CORTEX systems at Thorpewood,Parkside & HQ into one system based onHQ servers."
21/03/2014,0010255877,001,"6,792.60",A P D Communications Ltd,24/03/2014,26/03/2014,T5A00000354200,T5A,Information Technology Airwave,3542,Airwave - Equipment Maintenance,"System Merge, Merge the 3existing CORTEX systems at Thorpewood,Parkside & HQ "
21/03/2014,0010255878,001,"6,792.60",A P D Communications Ltd,24/03/2014,26/03/2014,T5A00000354200,T5A,Information Technology Airwave,3542,Airwave - Equipment Maintenance,"System Merge, Merge the 3existing CORTEX systems at Thorpewood,Parkside & HQ "
26/02/2014,0010254833,001,"6,788.24",Pcc Hertfordshire,26/03/2014,26/03/2014,G4AG9M00080100,G4A,Training & DevelopmentTraining Courses,0801,Training - Police Officers - External,Training Costs 2013-14 - MCU
21/02/2014,0010254109,001,"6,737.50",S Yaffy Limited,25/02/2014,12/03/2014,W5B00000320000,W5B,Collaborative Services - Procurement - Stores,3200,Clothing & Uniforms - General,POLICE Light Weight Blouson
27/02/2014,0010254950,001,"6,721.20",Specialist Computer Centres Plc,18/03/2014,19/03/2014,LLA00000351000,LLA,Local Policing ,3510,Computer Hardware - Purchase,Notebook TPE S1 Yoga 4G
03/03/2014,0010255362,002,"6,618.88",Specialist Computer Centres Plc,24/03/2014,26/03/2014,T2F00000353000,T2F,Information Technology Service Delivery,3530,Network Infrastructure Equipment,Cisco 5508 SeriesWireless Controller for HighAvailability
05/03/2014,0010255483,001,"6,531.75",Cooneen Protection Ltd,18/03/2014,19/03/2014,W5B00000321000,W5B,Collaborative Services - Procurement - Stores,3210,Clothing & Uniforms - Protective Clothing, HAWK 65_11 MALEMale Panels - Police
26/02/2014,0010254833,006,"6,451.18",Pcc Hertfordshire,26/03/2014,26/03/2014,G4AG3A00080100,G4A,Training & DevelopmentTraining Courses,0801,Training - Police Officers - External,Training Costs 2013-14 - RPU
11/03/2014,0010255464,003,"6,432.00",Unisys Limited,19/03/2014,19/03/2014,T2FTDV00351500,T2F,Information Technology Service Delivery,3515,Computer Software Licence Costs,Upgrade HOLMES 2 application withpatches 
02/03/2014,0010255492,001,"6,366.01",Oracle Corporation Uk Limited,26/03/2014,26/03/2014,T2DTCH00351500,T2D,Information Technology Projects & Applications,3515,Computer Software Licence Costs,350 x Internet Application ServerEnterprise Edition
10/02/2014,0010253720,001,"6,190.00",Pace Fuelcare Limited,18/02/2014,05/03/2014,F5A00000110200,F5A,Estates & Facilities ManagementEstates,1102,Fuel Oil,HEATING OIL 
10/03/2014,0010255415,001,"6,139.00",Pace Fuelcare Limited,26/03/2014,26/03/2014,F5A00000110200,F5A,Estates & Facilities ManagementEstates,1102,Fuel Oil,FUEL OIL 
14/02/2014,0010254003,001,"6,045.00",Michael Lupton Associates Ltd,25/02/2014,05/03/2014,W5B00000322000,W5B,Collaborative Services - Procurement - Stores,3220,Clothing & Uniforms - PSU Clothing,Guardian MK3 Helmets3 x Size 15 x Size 315 x Size 4
13/03/2014,0010255504,002,"6,000.00",Capita Ib Solutions (Uk) Ltd,26/03/2014,26/03/2014,Y6AYGQ00850000,Y6A,Corporate CostsMiscellaneousCentral Costs,8500,Capital Expenditure Suspense,1 x Invoice Approval licence fees
25/02/2014,0010254896,001,"5,913.05",Specialist Computer Centres Plc,13/03/2014,19/03/2014,T1A00000351000,T1A,IT Management,3510,Computer Hardware - Purchase,NoteBook TP T440P 16G 256 
01/03/2014,0010255102,001,"5,853.52",Edf Energy 1 Limited,13/03/2014,12/03/2014,F5AB3600110000,F5A,Estates & Facilities ManagementEstates,1100,Electricity,PARKSIDE
11/02/2014,0010253987,001,"5,747.94",Cooneen Protection Ltd,26/02/2014,05/03/2014,W5B00000321000,W5B,Collaborative Services - Procurement - Stores,3210,Clothing & Uniforms - Protective Clothing, HAWK 65_11 MALEMale Panels - Police
21/03/2014,0010255836,001,"5,732.40",Give As You Earn (Caf),25/03/2014,26/03/2014,Z9A99900941600,Z9A,Balance Sheet,9416,Current LiabilitiesCreditorsEmployees Voluntary Deductions Control,PAYROLL
02/03/2014,0010255492,003,"5,708.85",Oracle Corporation Uk Limited,26/03/2014,26/03/2014,T2DTCH00351500,T2D,Information Technology Projects & Applications,3515,Computer Software Licence Costs,362 x Oracle database EnterpriseEdition- 
13/03/2014,0010255502,001,"5,600.00",Pcc Hertfordshire,26/03/2014,26/03/2014,G4AG4Q00080100,G4A,Training & DevelopmentTraining Courses,0801,Training - Police Officers - External,Surveillance course
01/03/2014,0010255103,001,"5,480.09",Edf Energy 1 Limited,13/03/2014,12/03/2014,F5AB2000110000,F5A,Estates & Facilities ManagementEstates,1100,Electricity,THORPE WOOD
21/02/2014,0010255178,001,"5,342.92",Reed Staffing Services Ltd,26/03/2014,26/03/2014,H5A00000065000,H5A,HROccupational Health,0650,Agency Staff, OHU Nurse 
28/02/2014,0010255394,001,"5,295.00",Phs Group Ltd,19/03/2014,19/03/2014,F5A00000160000,F5A,Estates & Facilities ManagementEstates,1600,Contract Cleaning,SANITARY DISPOSAL - FORCE WIDE FROM01.04.14 TO 31.03.2015
21/02/2014,0010255030,001,"5,294.75",Key Forensic Services Ltd,07/03/2014,12/03/2014,WGA00000340000,WGA,Scientific Services,3400,Forensic Provider,DNA CRIME SCENE STAINS
11/02/2014,0010254123,007,"5,222.78",Airwave Solutions Ltd (Decision Focus),21/02/2014,27/02/2014,T5A00000351300,T5A,Information Technology Airwave,3513,Computer Software Purchase,RENTAL CHARGES
25/02/2014,0010254881,001,"5,200.78",Capita Secure Resource Solutions Ltd,13/03/2014,19/03/2014,T2FTBU00351200,T2F,Information Technology Service Delivery,3512,Computer Hardware - Maintenance,Capita SRS Quarterly Uplift Fund
11/03/2014,0010255401,002,"5,200.00",Tactical Safety Responses Ltd,19/03/2014,19/03/2014,LLAWPX00303800,LLA,Local Policing ,3038,Firearms-Purchase-Tasers, Taser 21 ft Blue Simulationcartridge
10/03/2014,0010255336,001,"5,010.95",Corona Energy Retail 4 Buying Solutions,18/03/2014,19/03/2014,F5AB2400110100,F5A,Estates & Facilities ManagementEstates,1101,Gas - Mains,POLICE HQ HINCHINGBROOKE PARK
20/03/2014,0010255898,001,"5,000.00",Crimestoppers Trust,26/03/2014,26/03/2014,A1A00000373500,A1A,A C P O,3735,Contributions - ACPO Initiatives,2014/15 grant funding contributiontowards Crimestoppers Eastern RegionManager Post
04/03/2014,0010255365,001,"4,959.60",Specialist Computer Centres Plc,17/03/2014,19/03/2014,T1A00000351000,T1A,IT Management,3510,Computer Hardware - Purchase, NoteBook TP X240 4G 500 W8P540847968A* QT-1403518 v1
17/02/2014,0010254283,002,"4,798.54",Ford Motor Company Limited,13/03/2014,12/03/2014,F6AVAB00850000,F6A,FleetHeadquarters,8500,Capital Expenditure Suspense,One-Stop shop conversion
26/02/2014,0010254833,007,"4,744.42",Pcc Hertfordshire,26/03/2014,26/03/2014,G4AG9R00080100,G4A,Training & DevelopmentTraining Courses,0801,Training - Police Officers - External,Training Costs 2013-14 - Public Order
10/03/2014,0010255334,001,"4,732.96",Corona Energy Retail 4 Buying Solutions,18/03/2014,19/03/2014,F5AB2000110100,F5A,Estates & Facilities ManagementEstates,1101,Gas - Mains,THORPE WOOD
27/02/2014,0010254915,002,"4,655.12",Hyundai Motor Uk Limited,26/03/2014,26/03/2014,F6AVAB00850000,F6A,FleetHeadquarters,8500,Capital Expenditure Suspense,Preparation costs
21/02/2014,0010255185,001,"4,639.26",Reed Staffing Services Ltd,19/03/2014,19/03/2014,B1CZHF00065000,B1C,DHQMajor Operations,0650,Agency Staff,fagency staff over the next 6 months 
11/02/2014,0010253850,002,"4,614.98",Hyundai Motor Uk Limited,17/03/2014,19/03/2014,F6AVAB00850000,F6A,FleetHeadquarters,8500,Capital Expenditure Suspense,Preparation cost
19/02/2014,0010254197,001,"4,611.75",S Yaffy Limited,25/02/2014,12/03/2014,W5B00000320000,W5B,Collaborative Services - Procurement - Stores,3200,Clothing & Uniforms - General,Hi-Vis Over Trousers
27/02/2014,0010254848,001,"4,455.00",Cipfa Business Ltd,13/03/2014,19/03/2014,A1A00000371200,A1A,A C P O,3712,Subscriptions - Professional,Annual subscription renewal to the CIPFAPolice 2014/15
01/03/2014,0010255447,003,"4,446.83",O2 Telefonica Uk Ltd,17/03/2014,19/03/2014,T2GTQG00350300,T2G,Information Technology Serv Delivery2,3503,Comms Equipment - Blackberry Charges,Blackberry Charges - Usage
14/02/2014,0010254114,001,"4,433.69",Vodafone,26/02/2014,05/03/2014,T2FTGH00351400,T2F,Information Technology Service Delivery,3514,Computer Software Development & Maintenance,Monthly Maintenance Charge 
20/03/2014,0010255909,001,"4,375.53",City Of London Police,26/03/2014,26/03/2014,B1C9ZA00400000,B1C,DHQMajor Operations,4000,Mutual Aid,Mounted police unit assistance
17/03/2014,0010255623,001,"4,222.80",M C Products,21/03/2014,26/03/2014,W5B00000320000,W5B,Collaborative Services - Procurement - Stores,3200,Clothing & Uniforms - General,M3 Kit Bags
26/02/2014,0010254868,001,"4,200.00",Talisman Software Limited,19/03/2014,19/03/2014,T2FTFQ00350400,T2F,Information Technology Service Delivery,3504,Comms Equipment - Maintenance,Annual Support & Maintenance
14/03/2014,0010255853,001,"4,183.02",Police Mutual Assurance Society Ltd,25/03/2014,26/03/2014,Z9A99900941600,Z9A,Balance Sheet,9416,Current LiabilitiesCreditorsEmployees Voluntary Deductions Control,PAYROLL
19/03/2014,0010255778,001,"4,154.73",Pcc Hertfordshire,26/03/2014,26/03/2014,D7EDAYM1373000,D7E,OperationsSafety Camera,3730,Contributions - General,Beds & Herts RPU Officers overtime cost
03/03/2014,0010255147,001,"4,143.34",Arqiva,13/03/2014,19/03/2014,T5A00000354300,T5A,Information Technology Airwave,3543,Airwave - Radio Maintenance,Installation & support of AirwaveVehicle Terminals - FEB 14
25/02/2014,0010254403,001,"4,000.00",Ndi Technologies,05/03/2014,19/03/2014,T2FTEE00351400,T2F,Information Technology Service Delivery,3514,Computer Software Development & Maintenance,Annual Software Support
28/02/2014,0010255590,001,"3,967.00",Gladwins  Ltd,24/03/2014,26/03/2014,F4B000008610BN,F4B,FinanceInsurance,8610,Insurance repairs,Vehicle Repairs
23/01/2014,0010255195,001,"3,914.88",Motorola  Ltd - Printrak,13/03/2014,12/03/2014,T5ATMR00354100,T5A,Information Technology Airwave,3541,Airwave - Radios,KMF Maintenance & Support 
13/03/2014,0010255765,001,"3,912.87",Cambridge Water Company,20/03/2014,26/03/2014,LLAB3600140000,LLA,Local Policing ,1400,Water Rates,PARKSIDE POLICE STATION
11/03/2014,0010255401,001,"3,900.00",Tactical Safety Responses Ltd,19/03/2014,19/03/2014,LLAWPX00303800,LLA,Local Policing ,3038,Firearms-Purchase-Tasers,TASER 21ft Live OperationalCartridge
21/03/2014,0010255844,001,"3,887.79",Child Support Agency,25/03/2014,26/03/2014,Z9A99900941600,Z9A,Balance Sheet,9416,Current LiabilitiesCreditorsEmployees Voluntary Deductions Control,PAYROLL
02/03/2014,0010255492,008,"3,852.81",Oracle Corporation Uk Limited,26/03/2014,26/03/2014,T2DTCH00351500,T2D,Information Technology Projects & Applications,3515,Computer Software Licence Costs,169 x Oracle Database Enterprise Edition- 
18/03/2014,0010256002,001,"3,803.00",Prob Solve Solutions Ltd,25/03/2014,26/03/2014,T2FTBX00351200,T2F,Information Technology Service Delivery,3512,Computer Hardware - Maintenance,Support and Maintenance of SunServers/Hardware 
25/02/2014,0010254284,004,"3,750.00",Kim Software Solutions Ltd,13/03/2014,19/03/2014,LLA00000343100,LLA,Local Policing ,3431,Consultants - Non-Operational,"5 days Implementation and testing forLive, Train and Test databases"
25/02/2014,0010254284,007,"3,750.00",Kim Software Solutions Ltd,13/03/2014,19/03/2014,LLA00000347000,LLA,Local Policing ,3470,Other Hired Services,Provisional budget for Lotus Notes backrecord conversion consultancy 
11/02/2014,0010254123,003,"3,715.53",Airwave Solutions Ltd (Decision Focus),21/02/2014,27/02/2014,T5ATHG00354400,T5A,Information Technology Airwave,3544,Airwave - Running Costs,RENTAL CHARGES
14/02/2014,0010253967,001,"3,692.36",B I Catering Equipment Services,19/02/2014,05/03/2014,LLA00000309300,LLA,Local Policing ,3093,Other Equipment - Purchase,Upright Benefit Line Stainless SteelCabinet Freezer
28/02/2014,0010255213,001,"3,677.15",Allied Mechanical Services Limited,19/03/2014,19/03/2014,F5AB3600100100,F5A,Estates & Facilities ManagementEstates,1001,Building Maintenance - Non Structural - Unplanned,To replace the G3 pump 2 in the boilerroom.
27/02/2014,0010254736,001,"3,675.00",Capita Secure Resource Solutions Ltd,20/03/2014,26/03/2014,H1A00000343100,H1A,HRManagement,3431,Consultants - Non-Operational,8 days of consultancy
28/02/2014,0010255573,001,"3,661.00",Languageline Solutions,18/03/2014,19/03/2014,KAA00000341100,KAA,Investigations -Management,3411,Interpreters Fees,INTERPRETING SERVICES
10/03/2014,0010255335,001,"3,643.39",Corona Energy Retail 4 Buying Solutions,18/03/2014,19/03/2014,F5AB4600110100,F5A,Estates & Facilities ManagementEstates,1101,Gas - Mains,THORPE WOOD POLICE STATION
20/03/2014,0010255997,002,"3,633.50",S Yaffy Limited,26/03/2014,26/03/2014,W5B00000320000,W5B,Collaborative Services - Procurement - Stores,3200,Clothing & Uniforms - General,Hi-Vis Over Trousers
10/03/2014,0010255347,001,"3,573.41",Corona Energy Retail 4 Buying Solutions,18/03/2014,19/03/2014,F5AB3600110100,F5A,Estates & Facilities ManagementEstates,1101,Gas - Mains,PARKSIDE POLICE STATION
19/02/2014,0010254118,001,"3,560.00",College Of Policing,26/02/2014,12/03/2014,G4AG9P00080100,G4A,Training & DevelopmentTraining Courses,0801,Training - Police Officers - External,Training
17/03/2014,0010255714,001,"3,526.00",Orchid Cellmark Ltd,19/03/2014,19/03/2014,WGA00000340000,WGA,Scientific Services,3400,Forensic Provider,DNA CRIME SCENE STAIN
19/03/2014,0010255739,001,"3,478.83",Badger Software Ltd,26/03/2014,26/03/2014,T2FTCR00351500,T2F,Information Technology Service Delivery,3515,Computer Software Licence Costs,CLIO2 Annual Support
03/03/2014,0010254906,001,"3,440.00",Civil Defence Supply Ltd,13/03/2014,19/03/2014,W5B00000320000,W5B,Collaborative Services - Procurement - Stores,3200,Clothing & Uniforms - General,Cannisters of PAVA2
17/02/2014,0010254077,001,"3,440.00",Civil Defence Supply Ltd,26/02/2014,12/03/2014,W5B00000320000,W5B,Collaborative Services - Procurement - Stores,3200,Clothing & Uniforms - General,Cannisters of PAVA2
21/03/2014,0010255880,001,"3,396.30",A P D Communications Ltd,24/03/2014,26/03/2014,T5A00000354200,T5A,Information Technology Airwave,3542,Airwave - Equipment Maintenance,"System Merge, Merge the 3existing CORTEX systems at Thorpewood,Parkside & HQ "
24/02/2014,0010255091,001,"3,308.00",Jlt Specialty Limited,12/03/2014,12/03/2014,F4B00000862000,F4B,FinanceInsurance,8620,Insurance - Brokers Fees,2014 FEE
28/02/2014,0010255183,001,"3,288.57",Reed Staffing Services Ltd,26/03/2014,26/03/2014,WKA000M1065000,WKA,Collaboration CTC,0650,Agency Staff,To cover the cost of agency staff
01/03/2014,0010254823,001,"3,266.66",Churchill Catering Ltd,13/03/2014,19/03/2014,F5A00000310000,F5A,Estates & Facilities ManagementEstates,3100,Catering Contract Charges,FIXED SUBSIDY MAY 2014
24/03/2014,0010255861,001,"3,247.00",Copperpot Credit Union Ltd,25/03/2014,26/03/2014,Z9A99900941600,Z9A,Balance Sheet,9416,Current LiabilitiesCreditorsEmployees Voluntary Deductions Control,PAYROLL
14/03/2014,0010255434,001,"3,196.35",Cooper Lomaz Recruitment Ltd,19/03/2014,19/03/2014,T2E00000065000,T2E,Information Technology Central Services,0650,Agency Staff,Recruitment Fee 15%: ICT Support Engineer
21/03/2014,0010255879,002,"3,125.00",A P D Communications Ltd,24/03/2014,26/03/2014,T5A00000354200,T5A,Information Technology Airwave,3542,Airwave - Equipment Maintenance,Hot Standby TETRA Gateway 
17/03/2014,0010255578,001,"3,108.00",Lgc  Limited,18/03/2014,19/03/2014,WGA00000340000,WGA,Scientific Services,3400,Forensic Provider,DNA CRIME STAINS
06/03/2014,0010255469,002,"3,099.00",Experian Ltd,24/03/2014,26/03/2014,T2GTQE00351500,T2G,Information Technology Serv Delivery2,3515,Computer Software Licence Costs,Demographics Online 
31/01/2014,0010253602,001,"3,095.66",Reed Staffing Services Ltd,18/03/2014,19/03/2014,KAA00000065000,KAA,Investigations -Management,0650,Agency Staff,fagency staff 
20/03/2014,0010256099,001,"3,086.25",Key Forensic Services Ltd,25/03/2014,26/03/2014,WGA00000340000,WGA,Scientific Services,3400,Forensic Provider,DNA
20/03/2014,0010255999,002,"3,080.00",Cromptons Healthcare Limited,26/03/2014,26/03/2014,W5B00000320000,W5B,Collaborative Services - Procurement - Stores,3200,Clothing & Uniforms - General,Custody Trousers (Grey)100 x Size Small100 x Size Medium100 x Size Large
01/03/2014,0010255107,001,"3,077.22",Edf Energy 1 Limited,13/03/2014,12/03/2014,F5AB3200110000,F5A,Estates & Facilities ManagementEstates,1100,Electricity,Office Unit
21/02/2014,0010255259,001,"3,038.73",Reed Staffing Services Ltd,26/03/2014,26/03/2014,WGA00000065000,WGA,Scientific Services,0650,Agency Staff,Additional value 
20/03/2014,0010256102,001,"3,009.09",Key Forensic Services Ltd,25/03/2014,26/03/2014,WGA00000340000,WGA,Scientific Services,3400,Forensic Provider,DNA CASEWORK/MATCH
20/03/2014,0010255998,002,"3,000.00",S Yaffy Limited,26/03/2014,26/03/2014,W5B00000320000,W5B,Collaborative Services - Procurement - Stores,3200,Clothing & Uniforms - General,POLICE TRAFFIC JACKET - Size: Small / Regular
31/01/2014,0010254642,001,"2,954.49",Neil Cawthorn Accident Repair Specialist,05/03/2014,05/03/2014,F4B000008610BN,F4B,FinanceInsurance,8610,Insurance repairs,Vehicle repairs
12/02/2014,0010253865,001,"2,939.61",Auto Umbau Ltd,19/02/2014,05/03/2014,F6AVAB00850000,F6A,FleetHeadquarters,8500,Capital Expenditure Suspense,Upgrades to 12 x Dogvehicles.
28/02/2014,0010255256,001,"2,917.42",Reed Staffing Services Ltd,26/03/2014,26/03/2014,WQA00000065000,WQA,PSD,0650,Agency Staff,PSD Investigator
06/03/2014,0010255357,001,"2,916.25",Specialist Computer Centres Plc,17/03/2014,19/03/2014,KAA00000351000,KAA,Investigations -Management,3510,Computer Hardware - Purchase, Canon DR G1100 - documentscanner
11/02/2014,0010254548,001,"2,900.00",Repath Limited,03/03/2014,05/03/2014,KAA00000341200,KAA,Investigations -Management,3412,Doctors Fees,NEUROPATHOLOGY REPORT
20/03/2014,0010255897,001,"2,862.06",Leicestershire County Council,26/03/2014,26/03/2014,G4AGRW00081100,G4A,Training & DevelopmentTraining Courses,0811,Training - Support Staff - External,Action Learning Sets course 
28/02/2014,0010255021,001,"2,830.56",Key Forensic Services Ltd,07/03/2014,19/03/2014,WGA00000340000,WGA,Scientific Services,3400,Forensic Provider,HOMICIDE & VIOLENT
21/02/2014,0010255042,001,"2,827.29",Key Forensic Services Ltd,13/03/2014,12/03/2014,WGA00000340000,WGA,Scientific Services,3400,Forensic Provider,HOMICIDE & VIOLENT CRIME
02/03/2014,0010255492,010,"2,783.97",Oracle Corporation Uk Limited,26/03/2014,26/03/2014,T2DTCH00351500,T2D,Information Technology Projects & Applications,3515,Computer Software Licence Costs,Real Application Clusters - ProcessorPerpetual
28/02/2014,0010254857,001,"2,780.81",Cgi It Uk Limited,13/03/2014,19/03/2014,F2B00000345000,F2B,FinanceFinanceExchequer Services,3450,Payroll Support,Monthly Payroll Run February 2014
14/03/2014,0010255593,001,"2,710.00",Orchid Cellmark Ltd,18/03/2014,19/03/2014,WGA00000340000,WGA,Scientific Services,3400,Forensic Provider,DNA CASEWORK
28/02/2014,0010255214,001,"2,706.00",Allied Mechanical Services Limited,19/03/2014,19/03/2014,F5AB2400100400,F5A,Estates & Facilities ManagementEstates,1004,"Building Maintenance - Equipment, Tools & Materials",Carry out wks on the heating Ryland Pumpin Boiler Rmas 
03/03/2014,0010255361,001,"2,693.09",Specialist Computer Centres Plc,19/03/2014,19/03/2014,KAA00000351000,KAA,Investigations -Management,3510,Computer Hardware - Purchase," Unlimited Usage 1STServer 1 Yr Licence + 1 Yr Supp, Maint &Training (ESD) "
20/03/2014,0010255757,001,"2,681.13",M C Products,26/03/2014,26/03/2014,W5B00000320000,W5B,Collaborative Services - Procurement - Stores,3200,Clothing & Uniforms - General,M3 Kit Bags
28/02/2014,0010255004,001,"2,619.90",Orchid Cellmark Ltd,12/03/2014,19/03/2014,WGA00000340000,WGA,Scientific Services,3400,Forensic Provider,PACE DNA SAMPLE
11/03/2014,0010255464,001,"2,572.00",Unisys Limited,19/03/2014,19/03/2014,T2FTDV00351500,T2F,Information Technology Service Delivery,3515,Computer Software Licence Costs,Upgrade operating system on two servers
27/02/2014,0010254916,002,"2,552.16",Hyundai Motor Uk Limited,26/03/2014,26/03/2014,F6AVAB00850000,F6A,FleetHeadquarters,8500,Capital Expenditure Suspense,Preparation costs
18/03/2014,0010255749,001,"2,520.00",Terrafix Ltd,26/03/2014,26/03/2014,T2FTFH00351200,T2F,Information Technology Service Delivery,3512,Computer Hardware - Maintenance,GPRS Managed Service
07/03/2014,0010255138,002,"2,500.00",A P D Communications Ltd,18/03/2014,19/03/2014,T5A00000354200,T5A,Information Technology Airwave,3542,Airwave - Equipment Maintenance,Hot Standby TETRA Gateway (HSTG)
21/02/2014,0010254994,001,"2,500.00",Orchid Cellmark Ltd,07/03/2014,12/03/2014,WGA00000340000,WGA,Scientific Services,3400,Forensic Provider,FIRE INVESTIGATION
21/03/2014,0010255877,002,"2,500.00",A P D Communications Ltd,24/03/2014,26/03/2014,T5A00000354200,T5A,Information Technology Airwave,3542,Airwave - Equipment Maintenance,Hot Standby TETRA Gateway 
21/03/2014,0010255878,002,"2,500.00",A P D Communications Ltd,24/03/2014,26/03/2014,T5A00000354200,T5A,Information Technology Airwave,3542,Airwave - Equipment Maintenance,Hot Standby TETRA Gateway 
14/03/2014,0010255847,001,"2,460.00",Copperpot Credit Union Ltd,25/03/2014,26/03/2014,Z9A99900941600,Z9A,Balance Sheet,9416,Current LiabilitiesCreditorsEmployees Voluntary Deductions Control,PAYROLL
14/03/2014,0010255503,001,"2,420.00",Viking Arms Ltd,20/03/2014,26/03/2014,W5B00000320000,W5B,Collaborative Services - Procurement - Stores,3200,Clothing & Uniforms - General,"26"" ASP Baton Foam Black Chrome"
13/03/2014,0010255413,001,"2,406.72",Auto Umbau Ltd,19/03/2014,19/03/2014,F6AVAB00850000,F6A,FleetHeadquarters,8500,Capital Expenditure Suspense,"12 x Front Justice GP series 23""Lightbars, 12 x Rear Justice GP series23"" lightbars."
21/02/2014,0010255181,001,"2,399.21",Reed Staffing Services Ltd,19/03/2014,19/03/2014,B1CZHF00065000,B1C,DHQMajor Operations,0650,Agency Staff,agency staff over the next 6 months 
10/03/2014,0010255489,001,"2,351.43",Cooneen Protection Ltd,26/03/2014,26/03/2014,W5B00000321000,W5B,Collaborative Services - Procurement - Stores,3210,Clothing & Uniforms - Protective Clothing,11 MALEMale Panels - Police
12/03/2014,0010255487,001,"2,330.64",Keela International Limited,18/03/2014,19/03/2014,W5B00000320000,W5B,Collaborative Services - Procurement - Stores,3200,Clothing & Uniforms - General,Black Mocha Advance Zip Top -  x Medium200 x Large
26/02/2014,0010254947,001,"2,315.80",Specialist Computer Centres Plc,13/03/2014,19/03/2014,Y7C00000850000,Y7C,METIS,8500,Capital Expenditure Suspense, Thinkpad 
28/02/2014,0010254830,001,"2,270.36",The Landscape Group Limited,13/03/2014,19/03/2014,F5A00000170000,F5A,Estates & Facilities ManagementEstates,1700,Grounds Maintenance,GROUNDS MAINTENANCE AREA 1 FEBRUARY 2014
25/02/2014,0010254284,005,"2,250.00",Kim Software Solutions Ltd,13/03/2014,19/03/2014,LLA00000081100,LLA,Local Policing ,0811,Training - Support Staff - External,Property Officer training course (3days) to include Train the Trainer
25/02/2014,0010254284,003,"2,250.00",Kim Software Solutions Ltd,13/03/2014,19/03/2014,LLA00000343100,LLA,Local Policing ,3431,Consultants - Non-Operational,3 days Project management
25/02/2014,0010254284,001,"2,250.00",Kim Software Solutions Ltd,13/03/2014,19/03/2014,LLA00000343100,LLA,Local Policing ,3431,Consultants - Non-Operational,3 days consultancy and business workshopfor configuration options
05/03/2014,0010255355,001,"2,199.49",Specialist Computer Centres Plc,19/03/2014,19/03/2014,G4AG9Y00081100,G4A,Training & DevelopmentTraining Courses,0811,Training - Support Staff - External,Sharepoint Training
24/03/2014,0010255871,001,"2,183.51",Simplyhealth,25/03/2014,26/03/2014,Z9A99900941600,Z9A,Balance Sheet,9416,Current LiabilitiesCreditorsEmployees Voluntary Deductions Control,PAYROLL
11/02/2014,0010253987,002,"2,182.40",Cooneen Protection Ltd,26/02/2014,05/03/2014,W5B00000321000,W5B,Collaborative Services - Procurement - Stores,3210,Clothing & Uniforms - Protective Clothing, HAWK 65-11 FEMALEFemale Panels - Police
07/03/2014,0010255428,002,"2,169.10",Praybourne Ltd,19/03/2014,19/03/2014,W5B00000322000,W5B,Collaborative Services - Procurement - Stores,3220,Clothing & Uniforms - PSU Clothing, Lightweight FR Boot Sock(with thicker Toe & Heel)BlackSize 9-12
17/02/2014,0010254982,001,"2,121.75",Orchid Cellmark Ltd,07/03/2014,12/03/2014,WGA00000340000,WGA,Scientific Services,3400,Forensic Provider,PACE DNA SAMPLE
13/02/2014,0010253992,001,"2,120.60",Raleigh Uk Ltd,26/02/2014,05/03/2014,W5B00000320000,W5B,Collaborative Services - Procurement - Stores,3200,Clothing & Uniforms - General,GLS003Cycle Sunglasses
17/02/2014,0010254076,001,"2,117.50",Viking Arms Ltd,25/02/2014,12/03/2014,W5B00000320000,W5B,Collaborative Services - Procurement - Stores,3200,Clothing & Uniforms - General,"26"" ASP BatonFoam Black Chrome"
26/02/2014,0010254833,005,"2,091.78",Pcc Hertfordshire,26/03/2014,26/03/2014,G4AG8N00080100,G4A,Training & DevelopmentTraining Courses,0801,Training - Police Officers - External,Training Costs 2013-14 - Dogs
28/02/2014,0010255008,001,"2,065.00",Orchid Cellmark Ltd,12/03/2014,19/03/2014,WGA00000340000,WGA,Scientific Services,3400,Forensic Provider,DNA CRIME SCENE STAIN/ENHANCED
21/02/2014,0010255040,001,"2,047.50",Key Forensic Services Ltd,07/03/2014,12/03/2014,WGA00000340000,WGA,Scientific Services,3400,Forensic Provider,VOLUME CRIME
03/03/2014,0010255359,001,"2,040.92",Specialist Computer Centres Plc,17/03/2014,19/03/2014,G4AG9X00081100,G4A,Training & DevelopmentTraining Courses,0811,Training - Support Staff - External, Server Virtualization withWindows
07/03/2014,0010255462,001,"2,032.80",Alt-Berg Boot Co,26/03/2014,26/03/2014,W5B00000320000,W5B,Collaborative Services - Procurement - Stores,3200,Clothing & Uniforms - General, Boots5    x    Size    58    x    Size    66    x    Size    6.5
17/02/2014,0010255092,001,"2,025.52",Gladwins  Ltd,13/03/2014,12/03/2014,F4B000008610BN,F4B,FinanceInsurance,8610,Insurance repairs,Vehicle Repairs
18/02/2014,0010254029,001,"2,010.00",Vwr International Ltd,26/02/2014,12/03/2014,LLA00000340000,LLA,Local Policing ,3400,Forensic Provider,Marquis Test Kits
28/02/2014,0010255184,001,"2,002.59",Reed Staffing Services Ltd,26/03/2014,26/03/2014,WKA000M1065000,WKA,Collaboration CTC,0650,Agency Staff,To cover the cost of agency staff 
13/03/2014,0010255504,001,"2,000.00",Capita Ib Solutions (Uk) Ltd,26/03/2014,26/03/2014,Y6AYGQ00850000,Y6A,Corporate CostsMiscellaneousCentral Costs,8500,Capital Expenditure Suspense,1 x Attachment Manager licence fees
20/03/2014,0010256011,001,"1,995.00",Micro Systemation Ag Publ.,26/03/2014,26/03/2014,KAA00000351000,KAA,Investigations -Management,3510,Computer Hardware - Purchase,XAMN (download & software licence) incl.12 months licence
21/02/2014,0010255279,001,"1,982.24",Reed Staffing Services Ltd,18/03/2014,19/03/2014,KAA00000065000,KAA,Investigations -Management,0650,Agency Staff,agency staff
21/03/2014,0010255831,001,"1,979.17",Welfare And Benevolent Fund,25/03/2014,26/03/2014,Z9A99900941600,Z9A,Balance Sheet,9416,Current LiabilitiesCreditorsEmployees Voluntary Deductions Control,PAYROLL
13/02/2014,0010253969,001,"1,950.00",Elysian Associates,19/02/2014,05/03/2014,F1A00000371100,F1A,FinanceManagement,3711,Subscriptions - Corporate,Tax advice on unauthorised pensionpayments
10/03/2014,0010255345,001,"1,944.49",Corona Energy Retail 4 Buying Solutions,18/03/2014,19/03/2014,F5AB1400110100,F5A,Estates & Facilities ManagementEstates,1101,Gas - Mains,POLICE STATION BRIDGE STREET
27/02/2014,0010254646,001,"1,921.00",Royal Mail,07/03/2014,12/03/2014,F5C00000330100,F5C,Estates & Facilities ManagementPostroom,3301,Postage & Carriage Costs,POSTAGE CHARGES
28/02/2014,0010255049,001,"1,915.32",Environmental Scientifics Group Limited,07/03/2014,19/03/2014,WGA00000340000,WGA,Scientific Services,3400,Forensic Provider,FORENSIC SERVICES
13/12/2013,0010253984,001,"1,897.89",Reed Staffing Services Ltd,18/03/2014,19/03/2014,KAA00000065000,KAA,Investigations -Management,0650,Agency Staff,agency staff
11/02/2014,0010253891,001,"1,866.00",Capita Ib Solutions (Uk) Ltd,19/03/2014,19/03/2014,Y6AYGQ00850000,Y6A,Corporate CostsMiscellaneousCentral Costs,8500,Capital Expenditure Suspense,2 x days installation and testing of OCR
17/03/2014,0010255715,001,"1,863.45",Orchid Cellmark Ltd,19/03/2014,19/03/2014,WGA00000340000,WGA,Scientific Services,3400,Forensic Provider,DNA SAMPLE
28/02/2014,0010254970,001,"1,862.00",Thomas Bow Limited,13/03/2014,19/03/2014,F8BB2400850000,F8B,MajRepairsPlan,8500,Capital Expenditure Suspense,to cover release of contingency nextyear
25/02/2014,0010254897,001,"1,859.79",Specialist Computer Centres Plc,13/03/2014,19/03/2014,E1A00000351000,E1A,Strategic Co-OrdinationDirectorate,3510,Computer Hardware - Purchase,NoteBook TP T440 4G 500 
17/02/2014,0010254986,001,"1,852.00",Orchid Cellmark Ltd,07/03/2014,12/03/2014,WGA00000340000,WGA,Scientific Services,3400,Forensic Provider,DNA CRIME SCENE STAIN
05/03/2014,0010255388,001,"1,829.00",G D Golding (Tailors) Ltd,25/03/2014,26/03/2014,W5B00000320000,W5B,Collaborative Services - Procurement - Stores,3200,Clothing & Uniforms - General,Tunic and 2 pairs of Trousers
26/02/2014,0010254943,001,"1,828.89",Cooneen Protection Ltd,13/03/2014,19/03/2014,W5B00000321000,W5B,Collaborative Services - Procurement - Stores,3210,Clothing & Uniforms - Protective Clothing, HAWK 65_11 MALEMale Panels - Police
18/03/2014,0010255683,001,"1,826.00",Post Office Counters,18/03/2014,19/03/2014,F6A00000200500,F6A,FleetHeadquarters,2005,Vehicle licences,VEH.LICENSING.APRIL.14
28/02/2014,0010254763,001,"1,785.80",V J Skerry Limited,13/03/2014,19/03/2014,F5AB24001000AC,F5A,Estates & Facilities ManagementEstates,1000,Building Maintenance - Non Structural - Planned,Supply and install 5x 30wled flood lights + photo cell andsurface mounted conduit 
28/02/2014,0010254828,001,"1,770.83",Experian Ltd,19/03/2014,19/03/2014,KAA00000347000,KAA,Investigations -Management,3470,Other Hired Services,2013-14 Provision of Financial andPersonal Data Services 
13/02/2014,0010253980,001,"1,770.74",Keela International Limited,03/03/2014,05/03/2014,W5B00000320000,W5B,Collaborative Services - Procurement - Stores,3200,Clothing & Uniforms - General,Black Neptune Fleeces15 x Size Medium40 x Size Large5 x Size XLarge
28/02/2014,0010255255,001,"1,761.48",Reed Staffing Services Ltd,26/03/2014,26/03/2014,WKA000M1065000,WKA,Collaboration CTC,0650,Agency Staff,To cover the cost of agency staff
18/03/2014,0010255711,001,"1,755.00",Sundry Suppliers,19/03/2014,26/03/2014,M1A00000081100,M1A,Media &Marketing,0811,Training - Support Staff - External,JELLYFISH: GOOGLE ANALYTICS TRAINING
28/02/2014,0010255233,001,"1,749.93",Specialist Computer Centres Plc,17/03/2014,19/03/2014,T1A00000351000,T1A,IT Management,3510,Computer Hardware - Purchase,ThinkPad USB 3.0 Dock(UK)
27/02/2014,0010255045,001,"1,707.24",Lgc  Limited,07/03/2014,19/03/2014,WGA00000340000,WGA,Scientific Services,3400,Forensic Provider,CASEWORK SEXUAL OFFENCES
13/03/2014,0010255605,001,"1,698.81",Royal Mail,24/03/2014,26/03/2014,F5C00000330100,F5C,Estates & Facilities ManagementPostroom,3301,Postage & Carriage Costs,POSTAGE CHARGES
21/03/2014,0010255881,001,"1,698.15",A P D Communications Ltd,24/03/2014,26/03/2014,T5A00000354200,T5A,Information Technology Airwave,3542,Airwave - Equipment Maintenance," System Merge, Merge the 3existing CORTEX systems at Thorpewood,Parkside & HQ"
28/02/2014,0010254832,001,"1,656.00",Mjn (Uk) Limited,13/03/2014,19/03/2014,B1CZPT00065000,B1C,DHQMajor Operations,0650,Agency Staff,Extension of Consultancy Services 
11/03/2014,0010255563,001,"1,648.04",British Gas Business,19/03/2014,19/03/2014,F5AB3000110000,F5A,Estates & Facilities ManagementEstates,1100,Electricity,MARCH STATION
14/02/2014,0010254075,001,"1,623.00",Siemens Building Tech Security Solutions,04/03/2014,05/03/2014,T2FTQM00351200,T2F,Information Technology Service Delivery,3512,Computer Hardware - Maintenance, ANPR CameraGOLD Support Renewal10.12.13 - 09.12.14
17/03/2014,0010255581,001,"1,622.79",Lgc  Limited,18/03/2014,19/03/2014,WGA00000340000,WGA,Scientific Services,3400,Forensic Provider,CASEWORK SEXUAL OFFENCES
20/03/2014,0010255999,001,"1,620.00",Cromptons Healthcare Limited,26/03/2014,26/03/2014,W5B00000320000,W5B,Collaborative Services - Procurement - Stores,3200,Clothing & Uniforms - General, Custody Tunics (Grey)39 x Size Small60 x Size Medium39 x Size Large
27/02/2014,0010255046,001,"1,618.18",Lgc  Limited,07/03/2014,19/03/2014,WGA00000340000,WGA,Scientific Services,3400,Forensic Provider,DNA CRIME STAINS
06/03/2014,0010255383,001,"1,600.00",Global Knowledge Network Training Ltd,19/03/2014,19/03/2014,G4AG9A00081100,G4A,Training & DevelopmentTraining Courses,0811,Training - Support Staff - External,"PRINCE, Agile and Scrum Awareness -on-site project management course"
13/03/2014,0010255522,001,"1,592.10",Auto Umbau Ltd,18/03/2014,19/03/2014,F6AVAB00850000,F6A,FleetHeadquarters,8500,Capital Expenditure Suspense,Converter kit  
12/02/2014,0010253986,001,"1,567.62",Cooneen Protection Ltd,19/02/2014,05/03/2014,W5B00000321000,W5B,Collaborative Services - Procurement - Stores,3210,Clothing & Uniforms - Protective Clothing,HAWK 65_11 MALEMale Panels - Police
27/02/2014,0010255044,001,"1,565.39",Lgc  Limited,07/03/2014,19/03/2014,WGA00000340000,WGA,Scientific Services,3400,Forensic Provider,DRUGS
18/02/2014,0010254404,001,"1,550.00",Snap-On Tools Limited,05/03/2014,12/03/2014,F6B00000309100,F6B,FleetMarch Workshop,3091,Small Tools,WORKSHOP MARCH(1)NEW SOLUSULTRA/1550.00.
18/02/2014,0010254406,001,"1,550.00",Snap-On Tools Limited,05/03/2014,12/03/2014,F6C00000309100,F6C,FleetPeterborough Workshop,3091,Small Tools,WORKSHOP B/ST(1)NEW SOLUS ULTRA/1550.00.
14/02/2014,0010254651,001,"1,549.88",Lgc  Limited,04/03/2014,05/03/2014,WGA00000340000,WGA,Scientific Services,3400,Forensic Provider,DNA CRIME STAINS
26/02/2014,0010254833,003,"1,537.52",Pcc Hertfordshire,26/03/2014,26/03/2014,G4AG4E00080100,G4A,Training & DevelopmentTraining Courses,0801,Training - Police Officers - External,Training Costs - 2013-14 - CT & DE(Special Branch)
14/02/2014,0010254064,001,"1,537.46",Focus Trovex Llp,26/02/2014,05/03/2014,F5AB32001000AN,F5A,Estates & Facilities ManagementEstates,1000,Building Maintenance - Non Structural - Planned,"Please supply and deliver 2xTrovexGallery Kit 2.5m inc Adhesive JointStrip, Anti-graffiti Coating"
24/02/2014,0010255425,001,"1,530.00",Quincey Mason Practices Ltd (Qmp),26/03/2014,26/03/2014,F5A000001000AD,F5A,Estates & Facilities ManagementEstates,1000,Building Maintenance - Non Structural - Planned,PROVISION OF CDM-C AND TECHNICALEXPERTISE FOR SOLAR INSTALLATION ATHAMPTON & ST.NEOTS STATIONS..
11/02/2014,0010255201,002,"1,529.50",Weightman Vizards,13/03/2014,12/03/2014,E1A00000343400,E1A,Strategic Co-OrdinationDirectorate,3434,Legal Fees - Commercial,PROFESSIONAL SERVICES
12/02/2014,0010254002,001,"1,515.00",Alere Toxicology Plc,26/02/2014,05/03/2014,LLA00000340000,LLA,Local Policing ,3400,Forensic Provider,12 x (Boxes 25) Alere Rapid SolidsCocaine Test Kits
13/03/2014,0010255729,001,"1,505.00",Thames Valley Police,25/03/2014,26/03/2014,H2A00000092500,H2A,HRResourcing,0925,Advertising for Police Officers,Police Officer assessment centre atThames Valley
25/02/2014,0010254284,002,"1,500.00",Kim Software Solutions Ltd,13/03/2014,19/03/2014,LLA00000081100,LLA,Local Policing ,0811,Training - Support Staff - External,2 days System Administration Training
25/02/2014,0010254878,001,"1,500.00",Pcc Cheshire,13/03/2014,19/03/2014,WBA00000305300,WBA,Dogs,3053,Police Dogs - Purchase,Police Dog
04/03/2014,0010255154,003,"1,500.00",S Yaffy Limited,13/03/2014,19/03/2014,W5B00000320000,W5B,Collaborative Services - Procurement - Stores,3200,Clothing & Uniforms - General,PCSO Traffic Jacket
18/02/2014,0010254090,001,"1,500.00",Snap-On Tools Limited,26/02/2014,12/03/2014,F6D00000309100,F6D,FleetCambridge Workshop,3091,Small Tools,Snap On Solus Ultra Diagnostic Scannersoftware 
27/02/2014,0010255876,001,"1,500.00",Baker Tilly Business Services Ltd,26/03/2014,26/03/2014,E1A00000351400,E1A,Strategic Co-OrdinationDirectorate,3514,Computer Software Development & Maintenance,Annual maintenance for 4 Risk system
14/02/2014,0010254535,001,"1,499.24",Specialist Computer Centres Plc,05/03/2014,05/03/2014,H1A00000343100,H1A,HRManagement,3431,Consultants - Non-Operational,WCN ANNUAL MONTHLY FEE FOR E-RECRUITMENTSYSTEM FEBRUARY 2014
03/12/2013,0010255193,001,"1,499.24",Specialist Computer Centres Plc,13/03/2014,12/03/2014,H1A00000343100,H1A,HRManagement,3431,Consultants - Non-Operational,WCN ANNUAL MONTHLY FEE FOR E-RECRUITMENTSYSTEM MARCH 2014
26/02/2014,0010254946,001,"1,493.60",Specialist Computer Centres Plc,13/03/2014,19/03/2014,E1A00000351000,E1A,Strategic Co-OrdinationDirectorate,3510,Computer Hardware - Purchase,Notebook TPE S1 Yoga 4G 
18/02/2014,0010254310,001,"1,477.50",Arktis Limited,05/03/2014,12/03/2014,W5B00000320000,W5B,Collaborative Services - Procurement - Stores,3200,Clothing & Uniforms - General,Avenger Jacket and Fleece10 x Size Medium5 x Size XLarge
20/03/2014,0010256101,001,"1,459.14",Key Forensic Services Ltd,25/03/2014,26/03/2014,WGA00000340000,WGA,Scientific Services,3400,Forensic Provider,BODY FLUID/DNA
26/02/2014,0010254877,001,"1,440.00",Mehler Vario System Gmbh,13/03/2014,19/03/2014,W5B00000321000,W5B,Collaborative Services - Procurement - Stores,3210,Clothing & Uniforms - Protective Clothing,MALE Police Front & Rear Body ArmourPanel Sets
10/03/2014,0010255343,001,"1,439.88",Corona Energy Retail 4 Buying Solutions,18/03/2014,19/03/2014,F5AB3000110100,F5A,Estates & Facilities ManagementEstates,1101,Gas - Mains,POLICE STATION BURROWMOOR ROAD
01/03/2014,0010255135,001,"1,410.00",Rewind Uk (Education And Interventions C,19/03/2014,19/03/2014,WRA000AW347000,WRA,Counter Terrorism & Domestic Extremism (Force Funded) from 01/12/12,3470,Other Hired Services,Provide 5 days R.W. training inPeterborough Schools
18/03/2014,0010255626,001,"1,396.00",Acorn Business Supplies,25/03/2014,26/03/2014,F5AB2400100100,F5A,Estates & Facilities ManagementEstates,1001,Building Maintenance - Non Structural - Unplanned,atrium chairswith chrome feet 
28/02/2014,0010254692,002,"1,394.67",Expotel Hotel Reservations Ltd,05/03/2014,05/03/2014,KAA00000360000,KAA,Investigations -Management,3600,Support Staff Subsistence Expenses,Accommodation Costs
01/03/2014,0010254960,001,"1,394.62",O2 Telefonica Uk Ltd,13/03/2014,19/03/2014,T2GTQF00356100,T2G,Information Technology Serv Delivery2,3561,Telephone Rental,Slates Rental Charges
28/02/2014,0010254858,001,"1,390.55",Cgi It Uk Limited,13/03/2014,19/03/2014,F2B00000345000,F2B,FinanceFinanceExchequer Services,3450,Payroll Support,Payroll Licences February 2014
28/02/2014,0010255024,001,"1,387.65",Key Forensic Services Ltd,07/03/2014,19/03/2014,WGA00000340000,WGA,Scientific Services,3400,Forensic Provider,BODY FLUID/DNA WORK
12/03/2014,0010255433,001,"1,360.00",Big Printing Company,18/03/2014,19/03/2014,LLA00000100100,LLA,Local Policing ,1001,Building Maintenance - Non Structural - Unplanned,To supply and fit signs 
26/02/2014,0010254968,001,"1,350.00",Cipfa Business Ltd,13/03/2014,19/03/2014,F2A00000371100,F2A,FinanceFinanceAccounting Services,3711,Subscriptions - Corporate,Annual Subscription Renewal to CIPFAStats 1st April 2014 - 31st March 2015
28/02/2014,0010254831,001,"1,328.00",Pgb (Uk) Ltd,13/03/2014,19/03/2014,B1CZPT00065000,B1C,DHQMajor Operations,0650,Agency Staff,Call-off order for Consultant 
23/01/2014,0010255196,001,"1,327.26",Motorola  Ltd - Printrak,13/03/2014,12/03/2014,T5ATMR00354100,T5A,Information Technology Airwave,3541,Airwave - Radios,KMF Disaster Recovery 
05/03/2014,0010255483,005,"1,306.35",Cooneen Protection Ltd,18/03/2014,19/03/2014,W5B00000321000,W5B,Collaborative Services - Procurement - Stores,3210,Clothing & Uniforms - Protective Clothing, HAWK 65-11 MALEMale Panels - PCSO
11/02/2014,0010255172,001,"1,305.33",Pell And Parker Ltd,19/03/2014,19/03/2014,LLA00000205000,LLA,Local Policing ,2050,Cycle Purchases,2013/14 Annual Call off order for cycleservicing and repairs
21/02/2014,0010255027,001,"1,299.90",Key Forensic Services Ltd,07/03/2014,12/03/2014,WGA00000340000,WGA,Scientific Services,3400,Forensic Provider,DRUGS ID
18/02/2014,0010253974,001,"1,294.30",Kim Software Solutions Ltd,14/03/2014,19/03/2014,T2FTIM00351400,T2F,Information Technology Service Delivery,3514,Computer Software Development & Maintenance,Annual Support for HolmesViewApplication Support
14/02/2014,0010254038,001,"1,272.60",Hi-Tec Sports Uk Ltd,26/02/2014,05/03/2014,W5B00000320000,W5B,Collaborative Services - Procurement - Stores,3200,Clothing & Uniforms - General,Classic CEN Boots2 x Size 52 x Size 710 x Size 8
13/02/2014,0010254085,001,"1,266.00",Spanset Limited,26/02/2014,05/03/2014,KAA00000309300,KAA,Investigations -Management,3093,Other Equipment - Purchase,Stingers
10/03/2014,0010255344,001,"1,258.18",Corona Energy Retail 4 Buying Solutions,18/03/2014,19/03/2014,F5AB5200110100,F5A,Estates & Facilities ManagementEstates,1101,Gas - Mains,POLICE STATION LYNN ROAD
21/03/2014,0010255880,002,"1,250.00",A P D Communications Ltd,24/03/2014,26/03/2014,T5A00000354200,T5A,Information Technology Airwave,3542,Airwave - Equipment Maintenance,Hot Standby TETRA Gateway 
01/02/2014,0010255455,001,"1,249.50",Solo Service Group Ltd,17/03/2014,19/03/2014,F5A000001600AJ,F5A,Estates & Facilities ManagementEstates,1600,Contract Cleaning,CONSUMABLE PRODUCTS SUPPLIED - JANUARY2014
20/01/2014,0010255770,001,"1,248.50",Aspen International Ltd,21/03/2014,26/03/2014,W5B00000321500,W5B,Collaborative Services - Procurement - Stores,3215,Clothing & Uniforms - TFU Clothing,TAC-BLK RIGHTLined Black Tactical Leg Holster
11/03/2014,0010255558,001,"1,240.18",British Gas Business,19/03/2014,19/03/2014,F5AB0300110000,F5A,Estates & Facilities ManagementEstates,1100,Electricity,Office Unit
25/02/2014,0010254898,001,"1,237.86",Specialist Computer Centres Plc,13/03/2014,19/03/2014,A3A00000351000,A3A,ACPO Force Resilience,3510,Computer Hardware - Purchase, NoteBook TP T440 4G 500 
12/02/2014,0010254014,001,"1,227.62",Specialist Computer Centres Plc,26/02/2014,05/03/2014,G4AG9X00081100,G4A,Training & DevelopmentTraining Courses,0811,Training - Support Staff - External,Designing Database
06/03/2014,0010255389,001,"1,227.62",Specialist Computer Centres Plc,19/03/2014,19/03/2014,G4AG9X00081100,G4A,Training & DevelopmentTraining Courses,0811,Training - Support Staff - External,Developing Microsoft SQLServer 2012 Databases
21/03/2014,0010256097,001,"1,225.00",Orchid Cellmark Ltd,25/03/2014,26/03/2014,WGA00000340000,WGA,Scientific Services,3400,Forensic Provider,BLODY FLUID SEARCH
28/02/2014,0010254855,001,"1,222.30",Tmp (Uk) Ltd,13/03/2014,19/03/2014,H5A00000344100,H5A,HROccupational Health,3441,Counselling Costs,Advert - Health and Safety Advisor.February 2014
21/01/2014,0010254635,001,"1,221.00",Hays Specialist Recruitment Ltd,05/03/2014,05/03/2014,Y7C00000065000,Y7C,METIS,0650,Agency Staff,Staffing Costs
27/01/2014,0010254636,001,"1,221.00",Hays Specialist Recruitment Ltd,05/03/2014,05/03/2014,Y7C00000065000,Y7C,METIS,0650,Agency Staff,Staffing Costs
10/02/2014,0010254637,001,"1,221.00",Hays Specialist Recruitment Ltd,05/03/2014,05/03/2014,Y7C00000065000,Y7C,METIS,0650,Agency Staff,Staffing Costs
17/02/2014,0010254639,001,"1,221.00",Hays Specialist Recruitment Ltd,05/03/2014,12/03/2014,Y7C00000065000,Y7C,METIS,0650,Agency Staff,Temp Staff
24/02/2014,0010255198,001,"1,221.00",Hays Specialist Recruitment Ltd,19/03/2014,19/03/2014,Y7C00000065000,Y7C,METIS,0650,Agency Staff,Temp Staff
18/02/2014,0010254308,001,"1,192.00",Arktis Limited,05/03/2014,12/03/2014,W5B00000320000,W5B,Collaborative Services - Procurement - Stores,3200,Clothing & Uniforms - General, Avenger Jacket & Fleece5 x Small5 x Medium5 x Large
21/03/2014,0010255883,001,"1,191.06",College Of Policing,26/03/2014,26/03/2014,G4AG9K00080100,G4A,Training & DevelopmentTraining Courses,0801,Training - Police Officers - External,20 people to sit NIE exam 
14/03/2014,0010255592,001,"1,190.00",Orchid Cellmark Ltd,18/03/2014,19/03/2014,WGA00000340000,WGA,Scientific Services,3400,Forensic Provider,GLASS EXAM
14/03/2014,0010255209,001,"1,189.60",Child Support Agency,18/03/2014,19/03/2014,Z9A99900941600,Z9A,Balance Sheet,9416,Current LiabilitiesCreditorsEmployees Voluntary Deductions Control,PAYROLL
17/02/2014,0010253947,001,"1,184.50",Psl Print Management Ltd,19/02/2014,12/03/2014,F5B8B000332100,F5B,Estates & Facilities ManagementStores,3321,Printed Materials,1150 X FORM 1032 SERIOUS SEXUAL OFFENCEBOOKS
10/02/2014,0010253844,001,"1,182.24",J P Lennard Limited,26/02/2014,05/03/2014,G1A00000309300,G1A,Training & DevelopmentManagement,3093,Other Equipment - Purchase,Multi-purpose Gym/Judo Mat
12/03/2014,0010255477,004,"1,181.70",Hi-Tec Sports Uk Ltd,18/03/2014,19/03/2014,W5B00000320000,W5B,Collaborative Services - Procurement - Stores,3200,Clothing & Uniforms - General,Classic CEN Boots6 x Size 53 x Size 710 x Size 9
31/01/2014,0010254552,001,"1,166.30",Neil Cawthorn Accident Repair Specialist,05/03/2014,05/03/2014,F4B000008610BN,F4B,FinanceInsurance,8610,Insurance repairs,Vehicle repairs
05/03/2014,0010255483,003,"1,163.96",Cooneen Protection Ltd,18/03/2014,19/03/2014,W5B00000321000,W5B,Collaborative Services - Procurement - Stores,3210,Clothing & Uniforms - Protective Clothing, NO BADGE NO TAPE MALEMale Black Cover - Police
28/02/2014,0010255236,002,"1,159.44",Specialist Computer Centres Plc,19/03/2014,19/03/2014,KAA00000351000,KAA,Investigations -Management,3510,Computer Hardware - Purchase,X2783HSU-B1 Iiyama ProLite 
06/03/2014,0010255136,002,"1,158.00",Axess International Ltd,13/03/2014,19/03/2014,T5ATMR00354100,T5A,Information Technology Airwave,3541,Airwave - Radios,300.x Earpieces
21/02/2014,0010254477,001,"1,142.81",Gladwins  Ltd,03/03/2014,12/03/2014,F4B000008610BN,F4B,FinanceInsurance,8610,Insurance repairs,Vehicle Repairs
12/03/2014,0010255477,002,"1,140.10",Hi-Tec Sports Uk Ltd,18/03/2014,19/03/2014,W5B00000320000,W5B,Collaborative Services - Procurement - Stores,3200,Clothing & Uniforms - General,Stealth Force 8.0 Boots3 x Size 33 x Size 53 x Size 7
05/03/2014,0010255381,003,"1,140.00",Arktis Limited,19/03/2014,19/03/2014,W5B00000321500,W5B,Collaborative Services - Procurement - Stores,3215,Clothing & Uniforms - TFU Clothing, Arktis Police CoatSize Large
11/03/2014,0010255539,001,"1,132.09",British Gas Business,19/03/2014,19/03/2014,F5AB2700110000,F5A,Estates & Facilities ManagementEstates,1100,Electricity,HUNTINGDON STATION
06/03/2014,0010255743,001,"1,125.00",City And Guilds Of London Institute,26/03/2014,26/03/2014,G4AG4H00080100,G4A,Training & DevelopmentTraining Courses,0801,Training - Police Officers - External,Registration of IPLDP students for Diploma in Policing
26/02/2014,0010254877,003,"1,120.00",Mehler Vario System Gmbh,13/03/2014,19/03/2014,W5B00000321000,W5B,Collaborative Services - Procurement - Stores,3210,Clothing & Uniforms - Protective Clothing,MALE Black Overt Carriers
28/02/2014,0010254885,001,"1,114.00",Bernard N Smith,13/03/2014,19/03/2014,W5B00000320000,W5B,Collaborative Services - Procurement - Stores,3200,Clothing & Uniforms - General,Tailoring Charge
05/03/2014,0010255352,002,"1,111.30",Specialist Computer Centres Plc,17/03/2014,19/03/2014,T1A00000351000,T1A,IT Management,3510,Computer Hardware - Purchase,Lenovo USB 3 Docking Station 
04/03/2014,0010255363,001,"1,105.26",Specialist Computer Centres Plc,17/03/2014,19/03/2014,H1A00000351000,H1A,HRManagement,3510,Computer Hardware - Purchase,Lenovo ThinkPad
14/02/2014,0010254007,001,"1,100.00",Western Airducts (Bath) Limited,26/02/2014,05/03/2014,F5AB2400100400,F5A,Estates & Facilities ManagementEstates,1004,"Building Maintenance - Equipment, Tools & Materials",Carry out alterations of the ductwork 
17/02/2014,0010256125,001,"1,100.00",Reed Business Information Ltd,26/03/2014,26/03/2014,F5A00000309300,F5A,Estates & Facilities ManagementEstates,3093,Other Equipment - Purchase,EGi Profesional Subscription 
20/03/2014,0010256098,001,"1,094.10",Key Forensic Services Ltd,25/03/2014,26/03/2014,WGA00000340000,WGA,Scientific Services,3400,Forensic Provider,ALCOHOL
28/02/2014,0010254461,001,"1,093.30",Rail Settlement Plan,04/03/2014,05/03/2014,Z9A99900994100,Z9A,Balance Sheet,9941,Suspense Purchase Ledger,TRAVEL ACCOUNT
05/03/2014,0010255483,002,"1,091.20",Cooneen Protection Ltd,18/03/2014,19/03/2014,W5B00000321000,W5B,Collaborative Services - Procurement - Stores,3210,Clothing & Uniforms - Protective Clothing,HAWK 65-11 FEMALEFemale Panels - Police
10/03/2014,0010255489,002,"1,091.20",Cooneen Protection Ltd,26/03/2014,26/03/2014,W5B00000321000,W5B,Collaborative Services - Procurement - Stores,3210,Clothing & Uniforms - Protective Clothing,1 FEMALEFemale Panels - Police
14/03/2014,0010255270,003,"1,066.66",Expotel Hotel Reservations Ltd,18/03/2014,19/03/2014,T2F00000360000,T2F,Information Technology Service Delivery,3600,Support Staff Subsistence Expenses,Accommodation
11/02/2014,0010253563,001,"1,060.00",Pcc Durham,26/02/2014,05/03/2014,A1A00000361000,A1A,A C P O,3610,Conference & Seminar Costs,Attendance at National SpecialConstabulary Conference 
28/02/2014,0010255572,001,"1,047.90",Languageline Solutions,18/03/2014,19/03/2014,KAA00000341100,KAA,Investigations -Management,3411,Interpreters Fees,INTERPRETING SERVICES
01/03/2014,0010254957,001,"1,045.00",O2 Telefonica Uk Ltd,13/03/2014,19/03/2014,T2G00000356200,T2G,Information Technology Serv Delivery2,3562,Telephone Calls,Mobile Phone Telephony - Usage
10/03/2014,0010255564,001,"1,042.69",Anglian Water,18/03/2014,19/03/2014,F5AB2400140000,F5A,Estates & Facilities ManagementEstates,1400,Water Rates,HINCH PARK HQ
31/01/2014,0010253922,009,"1,038.08",Goodyear Ssc,27/02/2014,05/03/2014,F6C00000200200,F6C,FleetPeterborough Workshop,2002,Vehicle tyres,STOCK(8)225/55R17  97Y  EXCELLENCE  ROFFP/1038.08.
13/03/2014,0010255390,001,"1,034.62",Auto Umbau Ltd,20/03/2014,26/03/2014,F6AVAB00850000,F6A,FleetHeadquarters,8500,Capital Expenditure Suspense,Upgrades to Dog vehicles.
24/02/2014,0010254900,001,"1,030.65",Allied Mechanical Services Limited,13/03/2014,19/03/2014,F5AB3200100400,F5A,Estates & Facilities ManagementEstates,1004,"Building Maintenance - Equipment, Tools & Materials",Carry out repair to main boiler plant 
07/02/2014,0010255182,001,"1,028.23",Reed Staffing Services Ltd,19/03/2014,19/03/2014,B1CZHF00065000,B1C,DHQMajor Operations,0650,Agency Staff,agency staff over the next 6 months
28/02/2014,0010255252,001,"1,025.45",Reed Staffing Services Ltd,26/03/2014,26/03/2014,WRA00000065000,WRA,Counter Terrorism & Domestic Extremism (Force Funded) from 01/12/12,0650,Agency Staff,Cover cost of agencystaff 
27/02/2014,0010254949,001,"1,023.00",Specialist Computer Centres Plc,06/03/2014,19/03/2014,T2FTNZ00850000,T2F,Information Technology Service Delivery,8500,Capital Expenditure Suspense,Implementation Services 
23/01/2014,0010255197,001,"1,021.00",Motorola  Ltd - Printrak,13/03/2014,12/03/2014,T5ATMR00354100,T5A,Information Technology Airwave,3541,Airwave - Radios,KMF Anti Virus Support
21/02/2014,0010255179,001,"1,014.51",Reed Staffing Services Ltd,19/03/2014,19/03/2014,B1CZHF00065000,B1C,DHQMajor Operations,0650,Agency Staff,agency staff over the next 6 months 
14/02/2014,0010254129,001,"1,010.00",Recovery Management Services Ltd,07/03/2014,12/03/2014,F6A00000341500,F6A,FleetHeadquarters,3415,Vehicle Recovery Costs,FLEET
03/02/2014,0010254638,001,"1,009.80",Hays Specialist Recruitment Ltd,05/03/2014,05/03/2014,Y7C00000065000,Y7C,METIS,0650,Agency Staff,Staffing Costs
19/02/2014,0010254428,003,"1,008.00",Mehler Vario System Gmbh,05/03/2014,12/03/2014,W5B00000321000,W5B,Collaborative Services - Procurement - Stores,3210,Clothing & Uniforms - Protective Clothing,MALE Black Overt Carriers
28/02/2014,0010255767,001,"1,007.80",Hedley Solutions Ltd,26/03/2014,26/03/2014,KAA00000351000,KAA,Investigations -Management,3510,Computer Hardware - Purchase,To install an additional 15 metre
14/02/2014,0010253941,001,"1,000.00",Axess International Ltd,19/02/2014,05/03/2014,T5ATMR00354100,T5A,Information Technology Airwave,3541,Airwave - Radios,Original Sepura Charger
25/02/2014,0010254450,001,"1,000.00",Leeds Day Solicitors,05/03/2014,19/03/2014,Y6A00000343200,Y6A,Corporate CostsMiscellaneousCentral Costs,3432,Legal Fees - Civil,Professional Fees
25/02/2014,0010254403,002,"1,000.00",Ndi Technologies,05/03/2014,19/03/2014,T2FTEE00351400,T2F,Information Technology Service Delivery,3514,Computer Software Development & Maintenance,Installation of XML server element onexisting NDI PNC GatewayOne day visit @1000
28/02/2014,0010255393,001,995.27,Lyreco Uk Ltd,19/03/2014,19/03/2014,F5B8B000330000,F5B,Estates & Facilities ManagementStores,3300,Printing & Stationery - General,STATIONERY PRODUCTS SUPLIED TO HQ STORES
27/02/2014,0010254453,005,995.00,Sigma Security Devices Ltd,19/03/2014,19/03/2014,LLA00000309300,LLA,Local Policing ,3093,Other Equipment - Purchase,CF3 Spreader
25/02/2014,0010254883,001,985.00,Arktis Limited,13/03/2014,19/03/2014,W5B00000320000,W5B,Collaborative Services - Procurement - Stores,3200,Clothing & Uniforms - General,Avenger Jacket & Fleece5 x Small5 x Medium5 x Large
21/02/2014,0010254989,001,980.00,Orchid Cellmark Ltd,07/03/2014,12/03/2014,WGA00000340000,WGA,Scientific Services,3400,Forensic Provider,BODY FLUID SEARCH & RECOVERY
31/10/2013,0010255430,001,973.49,Peterborough Laundry Services Ltd,17/03/2014,19/03/2014,LLA00000323000,LLA,Local Policing ,3230,Hired Services - Laundry,"Provision of Laundry Services for ThorpeWood, Parkside & Huntingdon Custody -October 2013"
28/02/2014,0010255480,001,972.45,Bt Conferencing,18/03/2014,19/03/2014,T2G00000356200,T2G,Information Technology Serv Delivery2,3562,Telephone Calls,BT MeetMe Conference CallsDec 13
17/02/2014,0010254463,001,963.04,Gladwins  Ltd,04/03/2014,12/03/2014,F4B000008610BP,F4B,FinanceInsurance,8610,Insurance repairs,Vehicle Repairs
21/03/2014,0010255839,001,962.82,Lottery Fund,25/03/2014,26/03/2014,Z9A99900941600,Z9A,Balance Sheet,9416,Current LiabilitiesCreditorsEmployees Voluntary Deductions Control,PAYROLL
10/03/2014,0010255337,001,957.43,Corona Energy Retail 4 Buying Solutions,18/03/2014,19/03/2014,F5AB2700110100,F5A,Estates & Facilities ManagementEstates,1101,Gas - Mains,POLICE STATION FERRARS ROAD
24/03/2014,0010255859,001,954.16,Teresa Bernadette Kirby,25/03/2014,26/03/2014,Z9A99900941600,Z9A,Balance Sheet,9416,Current LiabilitiesCreditorsEmployees Voluntary Deductions Control,PAYROLL
13/02/2014,0010253707,001,950.00,Vievolve Ltd,26/02/2014,05/03/2014,G4AG4D00081100,G4A,Training & DevelopmentTraining Courses,0811,Training - Support Staff - External,Maximising Your EffectivenessModule 1
26/02/2014,0010254731,001,950.00,Barker Storey Matthews,13/03/2014,19/03/2014,F5AB3500343100,F5A,Estates & Facilities ManagementEstates,3431,Consultants - Non-Operational,Valution Report demonstrating bestcommercial return for Papworth Policestation site 
24/03/2014,0010255913,001,943.00,Characters (Drama Based Learning) Ltd,26/03/2014,26/03/2014,G4AG9D00080100,G4A,Training & DevelopmentTraining Courses,0801,Training - Police Officers - External,Tier 2 Interviewing Course
15/02/2014,0010254033,001,936.90,Characters (Drama Based Learning) Ltd,04/03/2014,12/03/2014,G4AG9D00080100,G4A,Training & DevelopmentTraining Courses,0801,Training - Police Officers - External,Tier 2 Interviewing Course
19/02/2014,0010254428,001,933.00,Mehler Vario System Gmbh,05/03/2014,12/03/2014,W5B00000321000,W5B,Collaborative Services - Procurement - Stores,3210,Clothing & Uniforms - Protective Clothing,MALE Police Front & Rear Body ArmourPanel Sets
28/02/2014,0010254779,001,931.25,Peterborough Laundry Services Ltd,18/03/2014,19/03/2014,LLA00000323000,LLA,Local Policing ,3230,Hired Services - Laundry,"Provision of Laundry Services for ThorpeWood, Parkside & Huntingdon Custody -February 2014"
10/03/2014,0010255449,001,931.00,Burton Mccall Ltd,19/03/2014,19/03/2014,W5B00000320000,W5B,Collaborative Services - Procurement - Stores,3200,Clothing & Uniforms - General, Black Mini Maglite AA
19/02/2014,0010254435,001,916.00,Auto Umbau Ltd,05/03/2014,12/03/2014,F6AVAB00850000,F6A,FleetHeadquarters,8500,Capital Expenditure Suspense,Life hammer kits 
04/03/2014,0010255376,001,915.96,Rsg Engineering Limited,19/03/2014,19/03/2014,F6AVAB00850000,F6A,FleetHeadquarters,8500,Capital Expenditure Suspense,Side fend off LED and number plateholder.
11/02/2014,0010253987,003,914.54,Cooneen Protection Ltd,26/02/2014,05/03/2014,W5B00000321000,W5B,Collaborative Services - Procurement - Stores,3210,Clothing & Uniforms - Protective Clothing, NO BADGE NO TAPE MALEMale Black Cover - Police
21/02/2014,0010255180,001,910.34,Reed Staffing Services Ltd,19/03/2014,19/03/2014,WGA00000065000,WGA,Scientific Services,0650,Agency Staff,agency staff
12/02/2014,0010253893,001,901.34,Ivor Searle Ltd,19/03/2014,19/03/2014,F6B00000200100,F6B,FleetMarch Workshop,2001,Vehicle spares,RE-CON GEARBOX
11/03/2014,0010255548,001,901.03,British Gas Business,19/03/2014,19/03/2014,F5AB5200110000,F5A,Estates & Facilities ManagementEstates,1100,Electricity,WISBECH STATION
13/03/2014,0010255522,002,900.90,Auto Umbau Ltd,18/03/2014,19/03/2014,F6AVAB00850000,F6A,FleetHeadquarters,8500,Capital Expenditure Suspense,UDS converter kit 
28/02/2014,0010255263,001,898.77,Ameycespa,19/03/2014,19/03/2014,F5A00000342100,F5A,Estates & Facilities ManagementEstates,3421,Waste Disposal,WASTE DISPOSAL HQ SITE FEBRUARY 2014
26/02/2014,0010254833,008,897.66,Pcc Hertfordshire,26/03/2014,26/03/2014,G4AG4A00080100,G4A,Training & DevelopmentTraining Courses,0801,Training - Police Officers - External,Training Costs 2013-14 - PSD
28/02/2014,0010255703,001,896.93,Bmw (Uk) Limited,19/03/2014,19/03/2014,F6C00000200100,F6C,FleetPeterborough Workshop,2001,Vehicle spares,STOCK(12)FILTERS/BIN605/298.44(2)BRAKEDISCS/BIN606/203.67(2)SETS BRAKEPADS/BIN600/141.05(2)BRAKEDISCS/BIN607/136.40(2)SETS BRAKE
17/02/2014,0010254465,001,895.38,Gladwins  Ltd,04/03/2014,12/03/2014,F4B000008610BN,F4B,FinanceInsurance,8610,Insurance repairs,Vehicle Repairs
07/03/2014,0010255411,001,890.00,David Horn Communications Ltd,19/03/2014,19/03/2014,Y6AYGQ00850000,Y6A,Corporate CostsMiscellaneousCentral Costs,8500,Capital Expenditure Suspense,"GSM Quad Band, Full DSP, 2 mic, vox andshock sens "
28/02/2014,0010255258,001,883.08,Reed Staffing Services Ltd,26/03/2014,26/03/2014,WRA00000065000,WRA,Counter Terrorism & Domestic Extremism (Force Funded) from 01/12/12,0650,Agency Staff,Cover cost of agencystaff
11/03/2014,0010255532,001,880.45,British Gas Business,19/03/2014,19/03/2014,F5AB1400110000,F5A,Estates & Facilities ManagementEstates,1100,Electricity,BRIDGE STREET
20/03/2014,0010256100,001,875.70,Key Forensic Services Ltd,25/03/2014,26/03/2014,WGA00000340000,WGA,Scientific Services,3400,Forensic Provider,DRUGS ID
11/02/2014,0010254169,001,875.00,Pressure Seal Solutions Ltd,25/02/2014,05/03/2014,F2B00000309400,F2B,FinanceFinanceExchequer Services,3094,Other Equipment - Repairs and Maintenance,Renewal Maintenance contract 
20/01/2014,0010255770,002,868.00,Aspen International Ltd,21/03/2014,26/03/2014,W5B00000321500,W5B,Collaborative Services - Procurement - Stores,3215,Clothing & Uniforms - TFU Clothing,STX TACTICAL RIGHTLined Black Tactical Holster
06/03/2014,0010255137,001,865.00,Axess International Ltd,13/03/2014,19/03/2014,T5ATMR00354100,T5A,Information Technology Airwave,3541,Airwave - Radios,SPS-3500-MPTT x 50
20/02/2014,0010254476,001,864.48,Fix Auto Peterborough,05/03/2014,12/03/2014,F4B000008610BN,F4B,FinanceInsurance,8610,Insurance repairs,Vehicle Repairs
28/02/2014,0010255134,001,858.80,Njc Secretarial,13/03/2014,19/03/2014,KBD00000347000,KBD,Investigations -CJ Dept,3470,Other Hired Services,Tape Transcribing - February 2014
21/02/2014,0010254436,001,858.41,Foster Property Maintenance Ltd,05/03/2014,12/03/2014,F8BB3200850000,F8B,MajRepairsPlan,8500,Capital Expenditure Suspense,Supply labour and skip to clearfurniture and goods from various roomsin tower block. Clear and builder cleanall rooms and leave in clean and tidy
05/03/2014,0010255381,002,855.00,Arktis Limited,19/03/2014,19/03/2014,W5B00000321500,W5B,Collaborative Services - Procurement - Stores,3215,Clothing & Uniforms - TFU Clothing, Arktis Police CoatSize Medium
05/03/2014,0010255381,001,855.00,Arktis Limited,19/03/2014,19/03/2014,W5B00000321500,W5B,Collaborative Services - Procurement - Stores,3215,Clothing & Uniforms - TFU Clothing, Arktis Police CoatSize Small
24/03/2014,0010255860,001,854.50,Tracy Louise Lambert,25/03/2014,26/03/2014,Z9A99900941600,Z9A,Balance Sheet,9416,Current LiabilitiesCreditorsEmployees Voluntary Deductions Control,PAYROLL
31/01/2014,0010254550,001,850.42,Neil Cawthorn Accident Repair Specialist,05/03/2014,05/03/2014,F4B000008610BN,F4B,FinanceInsurance,8610,Insurance repairs,Vehicle repairs
28/02/2014,0010255052,001,850.00,Manlove Forensics,07/03/2014,19/03/2014,WGA00000340000,WGA,Scientific Services,3400,Forensic Provider,FORENSIC SERVICES
14/02/2014,0010254121,001,847.50,Grg Public Resources Ltd,04/03/2014,05/03/2014,Y6A00000341700,Y6A,Corporate CostsMiscellaneousCentral Costs,3417,Boarding & Glazing,5xbills
07/02/2014,0010253412,001,839.94,Jml Training Solutions Limited,26/03/2014,26/03/2014,W5B00000322000,W5B,Collaborative Services - Procurement - Stores,3220,Clothing & Uniforms - PSU Clothing,"PSU MEDIC 'LEG BAGS':1 x Tactical Leg Pack (Black - 21.5W x23H x 7D cm)2 x Emergency Care Compression Bandages,"
27/02/2014,0010255108,001,836.70,Anglian Water,12/03/2014,12/03/2014,F5AB3200140000,F5A,Estates & Facilities ManagementEstates,1400,Water Rates, Water Rates
14/02/2014,0010254649,001,830.98,Lgc  Limited,04/03/2014,05/03/2014,WGA00000340000,WGA,Scientific Services,3400,Forensic Provider,CASEWORK HOMICIDE/VIOLENT CRIME
06/03/2014,0010255218,001,826.50,Woodway Engineering Ltd,19/03/2014,19/03/2014,F6AVAB00850000,F6A,FleetHeadquarters,8500,Capital Expenditure Suspense,Blue and white LED lamps
19/02/2014,0010254428,008,816.00,Mehler Vario System Gmbh,05/03/2014,12/03/2014,W5B00000321000,W5B,Collaborative Services - Procurement - Stores,3210,Clothing & Uniforms - Protective Clothing,MALE Firearms Front & Rear Body ArmourPanel Set - HG2/KR2/SP2
27/03/2013,0010254343,001,810.95,Unipart Security,05/03/2014,05/03/2014,F5AB22001004AE,F5A,Estates & Facilities ManagementEstates,1004,"Building Maintenance - Equipment, Tools & Materials",Replace intruder panel
07/03/2014,0010255510,001,809.70,Specialist Computer Centres Plc,18/03/2014,19/03/2014,LLA00000351000,LLA,Local Policing ,3510,Computer Hardware - Purchase,Seagate Desktop HDDST2000DM001 - hard drive - 2 TB -SATA-600
13/03/2014,0010255627,001,806.19,Foster Property Maintenance Ltd,19/03/2014,19/03/2014,F5AB0400100100,F5A,Estates & Facilities ManagementEstates,1001,Building Maintenance - Non Structural - Unplanned,Office move
11/03/2014,0010255553,001,805.44,British Gas Business,19/03/2014,19/03/2014,F5AB2200110000,F5A,Estates & Facilities ManagementEstates,1100,Electricity,ELY STATION
21/02/2014,0010254838,001,803.00,Arktis Limited,06/03/2014,12/03/2014,W5B00000320000,W5B,Collaborative Services - Procurement - Stores,3200,Clothing & Uniforms - General,Trousers3 x Size 32R3 x Size 32L3 x Size 34S
11/02/2014,0010253565,001,800.00,Forensic Video Services Ltd,26/02/2014,05/03/2014,LLA00000347000,LLA,Local Policing ,3470,Other Hired Services,Statement and analysis of photos in afraud case involving the passport office
12/02/2014,0010253914,001,799.50,Deenside Ltd,19/02/2014,05/03/2014,W5B00000320000,W5B,Collaborative Services - Procurement - Stores,3200,Clothing & Uniforms - General,Lightweight Groin and Box Guards
05/03/2014,0010255242,002,799.00,Data Duplication Ltd,17/03/2014,19/03/2014,T2FTBN00351200,T2F,Information Technology Service Delivery,3512,Computer Hardware - Maintenance, Analyst Internet License
05/03/2014,0010255351,002,798.48,Specialist Computer Centres Plc,19/03/2014,19/03/2014,KAA00000351000,KAA,Investigations -Management,3510,Computer Hardware - Purchase,Kingston ValueRAMmemory - 16 GB 
28/02/2014,0010255026,001,798.00,Key Forensic Services Ltd,07/03/2014,19/03/2014,WGA00000340000,WGA,Scientific Services,3400,Forensic Provider,TOXICOLOGY
30/01/2014,0010253397,001,794.72,Specialist Computer Centres Plc,05/03/2014,05/03/2014,T2FTGG00351400,T2F,Information Technology Service Delivery,3514,Computer Software Development & Maintenance, Lenovo ThinkPad Tablet 2 3679 -10.1� - Atom Z2760 - Windows 8 32-bit -32 GB Flash - 2 GB RAM
14/02/2014,0010254006,001,788.00,Western Airducts (Bath) Limited,26/02/2014,05/03/2014,F5AB2400100400,F5A,Estates & Facilities ManagementEstates,1004,"Building Maintenance - Equipment, Tools & Materials",HQ  - carry out alterations
20/03/2014,0010256003,003,787.80,Hi-Tec Sports Uk Ltd,26/03/2014,26/03/2014,W5B00000320000,W5B,Collaborative Services - Procurement - Stores,3200,Clothing & Uniforms - General,Classic  Boots5 x Size 75 x Size 85 x Size 9
28/02/2014,0010255017,001,783.30,Key Forensic Services Ltd,07/03/2014,19/03/2014,WGA00000340000,WGA,Scientific Services,3400,Forensic Provider,DRUGS ID
24/01/2014,0010253069,001,781.50,Specialist Computer Centres Plc,05/03/2014,05/03/2014,T2FTBP00351200,T2F,Information Technology Service Delivery,3512,Computer Hardware - Maintenance,duplicate delivery ofHD-545X-ZCH2 XFX RADEON HD 5450 GRAPHICSCARD 1024MB
14/02/2014,0010254311,001,769.51,Calumet Photographic Ltd,05/03/2014,05/03/2014,KEA00000301000,KEA,Investigations -Covert Ops,3010,Photographic Equipment,NIKON 80-400MMF4.5-5.6D ED AF VR ZOOM NIKKOR*Old Model*
24/03/2014,0010255864,001,768.42,Lottery Fund,25/03/2014,26/03/2014,Z9A99900941600,Z9A,Balance Sheet,9416,Current LiabilitiesCreditorsEmployees Voluntary Deductions Control,PAYROLL
24/02/2014,0010254479,001,765.02,Anglian Water,28/02/2014,05/03/2014,LLAB1400140000,LLA,Local Policing ,1400,Water Rates,POLICE STATION BRIDGE STREET
18/02/2014,0010254219,001,763.35,Pace Fuelcare Limited,13/03/2014,12/03/2014,F5AB5100110200,F5A,Estates & Facilities ManagementEstates,1102,Fuel Oil,Please deliver 1500 ltrs central heating oil
17/02/2014,0010253985,001,760.00,5 Star Private Hire,18/03/2014,19/03/2014,LLA00000230200,LLA,Local Policing ,2302,Support Staff Travel Expenses,Taxi Service
13/03/2014,0010255414,002,760.00,Cobham Tcs Ltd,24/03/2014,26/03/2014,T2FTIT00350400,T2F,Information Technology Service Delivery,3504,Comms Equipment - Maintenance, Fusion TX/RX Service
27/02/2014,0010254892,004,757.50,Hi-Tec Sports Uk Ltd,13/03/2014,19/03/2014,W5B00000320000,W5B,Collaborative Services - Procurement - Stores,3200,Clothing & Uniforms - General,Classic CEN BootsSize 9
05/03/2014,0010255351,001,756.26,Specialist Computer Centres Plc,19/03/2014,19/03/2014,KAA00000351000,KAA,Investigations -Management,3510,Computer Hardware - Purchase, Intel Xeon E5-2630V2 /2.6 GHz processor
28/02/2014,0010255236,001,750.54,Specialist Computer Centres Plc,19/03/2014,19/03/2014,KAA00000351000,KAA,Investigations -Management,3510,Computer Hardware - Purchase,XUSamsung H40B - 40 in
27/02/2014,0010256124,001,750.00,Dr J Patel,26/03/2014,26/03/2014,WGA00000340000,WGA,Scientific Services,3400,Forensic Provider,DENTAL SERVICES
28/02/2014,0010255234,001,749.97,Specialist Computer Centres Plc,18/03/2014,19/03/2014,LLA00000351000,LLA,Local Policing ,3510,Computer Hardware - Purchase,ADAPTR ThinkPad USB 3.0 Dock(UK)
18/03/2014,0010255992,001,747.35,Specialist Computer Centres Plc,26/03/2014,26/03/2014,T1A00000351000,T1A,IT Management,3510,Computer Hardware - Purchase, LENOVO THINKPAD ULTRA DOCK -135W UK
26/02/2014,0010254948,001,746.80,Specialist Computer Centres Plc,24/03/2014,26/03/2014,G1A00000351000,G1A,Training & DevelopmentManagement,3510,Computer Hardware - Purchase,Notebook TPE S1 Yoga 4G 
11/03/2014,0010255555,001,740.66,British Gas Business,19/03/2014,19/03/2014,F5AB1800110000,F5A,Estates & Facilities ManagementEstates,1100,Electricity,CAMBOURNE STATION
14/03/2014,0010255856,001,739.95,Welfare And Benevolent Fund,25/03/2014,26/03/2014,Z9A99900941600,Z9A,Balance Sheet,9416,Current LiabilitiesCreditorsEmployees Voluntary Deductions Control,PAYROLL
01/02/2014,0010255456,001,739.50,Solo Service Group Ltd,17/03/2014,19/03/2014,F5A000001600AJ,F5A,Estates & Facilities ManagementEstates,1600,Contract Cleaning,CONSUMABLE PRODUCTS SUPPLIED DECEMBER2013
29/11/2013,0010254541,001,739.42,Bright Hygiene Management (London) Ltd,03/03/2014,05/03/2014,F5A00000330000,F5A,Estates & Facilities ManagementEstates,3300,Printing & Stationery - General,DEEP CLEAN OF KITCHEN
24/12/2013,0010255813,001,736.45,Bottomline Technologies Ltd,26/03/2014,26/03/2014,F2A00000351400,F2A,FinanceFinanceAccounting Services,3514,Computer Software Development & Maintenance,Paybase annual maintenance2nd January 2014 - 1st January 2015
20/02/2014,0010255095,001,727.79,Gladwins  Ltd,13/03/2014,12/03/2014,F4B000008610BN,F4B,FinanceInsurance,8610,Insurance repairs,Vehicle Repairs
11/03/2014,0010255528,001,727.75,Michael Lupton Associates Ltd,19/03/2014,19/03/2014,W5B00000320000,W5B,Collaborative Services - Procurement - Stores,3200,Clothing & Uniforms - General,Leather Utility Belts30 x Size Medium30 x Size Large
13/02/2014,0010254092,001,725.72,Snap-On Tools Limited,20/02/2014,05/03/2014,F6D00000309100,F6D,FleetCambridge Workshop,3091,Small Tools,"Tool replacements, speed braces, 1/4""extensions, T handle drivers, Hexkeysocket kits, slip jaw pliers, sidecutters, wheel socket 22mm"
03/03/2014,0010255367,001,725.00,Spartan Rescue Limited,25/03/2014,26/03/2014,A3A00000347000,A3A,ACPO Force Resilience,3470,Other Hired Services,call out charges for 2013/2014
27/02/2014,0010254895,001,720.50,Crown Pet Foods Ltd,13/03/2014,19/03/2014,WBA00000305000,WBA,Dogs,3050,Police Dogs - Food,Royal Canin Maxi Adult 4140200
16/07/2013,0010254361,001,713.60,Unipart Security,05/03/2014,05/03/2014,F5AB27001004AE,F5A,Estates & Facilities ManagementEstates,1004,"Building Maintenance - Equipment, Tools & Materials",Property Store - Install door accessonto inner lobby door
12/03/2014,0010255477,003,705.60,Hi-Tec Sports Uk Ltd,18/03/2014,19/03/2014,W5B00000320000,W5B,Collaborative Services - Procurement - Stores,3200,Clothing & Uniforms - General,Patrol CEN Boots8 x Size 38 x Size 4
12/02/2014,0010253647,001,705.00,Fast Engineering Ltd,26/02/2014,05/03/2014,LLA00000300000,LLA,Local Policing ,3000,Bedding & Linen,FASTASLEEP-fire resistant vandal proofmattress - 190x60x10
17/03/2014,0010255580,001,704.57,Lgc  Limited,18/03/2014,19/03/2014,WGA00000340000,WGA,Scientific Services,3400,Forensic Provider,CASEWORK HOMICIDE/VIOLENT CRIME
24/12/2013,0010256117,001,702.70,Gladwins  Ltd,25/03/2014,26/03/2014,F6D00000200300,F6D,FleetCambridge Workshop,2003,Vehicle repairs,Vehicle Repairs
19/02/2014,0010254300,001,702.00,Specialist Computer Centres Plc,13/03/2014,12/03/2014,Y7C00000850000,Y7C,METIS,8500,Capital Expenditure Suspense,BUFFALO MediaStation 8x Portable DVDWriter with LED Power Indicator 
18/02/2014,0010254108,001,700.00,Bitea Limited,26/02/2014,12/03/2014,T5A00000351300,T5A,Information Technology Airwave,3513,Computer Software Purchase, TETRA Test ToolsSoftware Supportcontract renewal 01/05/2014  30/04/2015
25/04/2012,0010255114,001,700.00,Unipart Security,13/03/2014,12/03/2014,F5AB24001000AC,F5A,Estates & Facilities ManagementEstates,1000,Building Maintenance - Non Structural - Planned,Routine Maintenance of Access Control 
21/03/2014,0010255842,001,695.00,Police Credit Union Ltd,25/03/2014,26/03/2014,Z9A99900941600,Z9A,Balance Sheet,9416,Current LiabilitiesCreditorsEmployees Voluntary Deductions Control,PAYROLL
17/03/2014,0010255582,001,694.80,Lgc  Limited,18/03/2014,19/03/2014,WGA00000340000,WGA,Scientific Services,3400,Forensic Provider,FORENSIC SERVICES
17/02/2014,0010255048,001,691.25,Lgc  Limited,07/03/2014,12/03/2014,WGA00000340000,WGA,Scientific Services,3400,Forensic Provider,DNA PACE
25/02/2014,0010254876,001,690.00,Ivor Searle Ltd,13/03/2014,19/03/2014,F6D00000200300,F6D,FleetCambridge Workshop,2003,Vehicle repairs,Test and replace diesel injectors 
01/02/2014,0010255454,001,688.50,Solo Service Group Ltd,17/03/2014,19/03/2014,F5A000001600AJ,F5A,Estates & Facilities ManagementEstates,1600,Contract Cleaning,CONSUMABLE PRODUCTS SUPPLIED FEBRUARY2014
31/01/2014,0010255175,005,686.55,Psl Print Management Ltd,17/03/2014,19/03/2014,F5B8B000332100,F5B,Estates & Facilities ManagementStores,3321,Printed Materials,1330 FORM 1048 DOMESTIC INCIDENT BOOKS
04/03/2014,0010255597,001,680.39,Home Office,21/03/2014,26/03/2014,H2A00000347000,H2A,HRResourcing,3470,Other Hired Services,NDNAD
26/02/2014,0010254886,001,671.22,Firmin & Sons Ltd,19/03/2014,19/03/2014,W5B00000320000,W5B,Collaborative Services - Procurement - Stores,3200,Clothing & Uniforms - General,Bedfordshire Police Sgt & PC Cap BadgesChrome plate with a vertical hookfitting
20/02/2014,0010255094,001,669.54,Gladwins  Ltd,14/03/2014,19/03/2014,F4B000008610BN,F4B,FinanceInsurance,8610,Insurance repairs,Vehicle Repairs
27/02/2014,0010254955,001,669.30,Southcombe Brothers Limited,13/03/2014,19/03/2014,W5B00000320000,W5B,Collaborative Services - Procurement - Stores,3200,Clothing & Uniforms - General,Mens Black Lined Leather Gloves withCuffS
11/03/2014,0010255421,002,660.00,Workin Togs Ltd,19/03/2014,19/03/2014,W5B00000320000,W5B,Collaborative Services - Procurement - Stores,3200,Clothing & Uniforms - General,Navy Blue NATO Jumpers with theHERTFORDSHIRE CONSTABULARY Crest5 x X/Small5 x Small
27/02/2014,0010254889,001,657.36,Keela International Limited,25/03/2014,26/03/2014,W5B00000320000,W5B,Collaborative Services - Procurement - Stores,3200,Clothing & Uniforms - General,Black Mocha Advance Zip Top  Medium200 x Large
26/02/2014,0010254943,002,654.72,Cooneen Protection Ltd,13/03/2014,19/03/2014,W5B00000321000,W5B,Collaborative Services - Procurement - Stores,3210,Clothing & Uniforms - Protective Clothing,HAWK 65-11 FEMALEFemale Panels - Police
14/03/2014,0010255891,001,650.00,Hegarty & Co Solicitors,26/03/2014,26/03/2014,F5AB2200343400,F5A,Estates & Facilities ManagementEstates,3434,Legal Fees - Commercial,Renewal of lease for CCTV Office 
21/03/2014,0010256096,001,650.00,Orchid Cellmark Ltd,25/03/2014,26/03/2014,WGA00000340000,WGA,Scientific Services,3400,Forensic Provider,DNA BODY FLUID
10/10/2013,0010255202,001,642.16,Ricoh Uk Ltd,13/03/2014,12/03/2014,LLA00000331100,LLA,Local Policing ,3311,Photocopier Copy Charges,Parkside Police Station
14/02/2014,0010254125,001,640.00,Recovery Management Services Ltd,27/02/2014,05/03/2014,LLA00000341500,LLA,Local Policing ,3415,Vehicle Recovery Costs,Peterborough
20/02/2014,0010254100,003,637.50,Workin Togs Ltd,25/02/2014,12/03/2014,W5B00000320000,W5B,Collaborative Services - Procurement - Stores,3200,Clothing & Uniforms - General,Superfleece Gloves x Medium50 x Large
06/03/2014,0010255136,001,636.00,Axess International Ltd,13/03/2014,19/03/2014,T5ATMR00354100,T5A,Information Technology Airwave,3541,Airwave - Radios,100 x   Clear Acoustic TubeEarpiece
12/02/2014,0010254035,001,634.15,O2 Telefonica Uk Ltd,26/02/2014,05/03/2014,T2FTOR00356000,T2F,Information Technology Service Delivery,3560,Telephone Equipment,Supply 5 x Blackberry 9720Insurance replacement
27/02/2014,0010254453,003,630.00,Sigma Security Devices Ltd,19/03/2014,19/03/2014,LLA00000309300,LLA,Local Policing ,3093,Other Equipment - Purchase,"30"" Hooligan Bar"
07/03/2014,0010255165,004,626.00,Expotel Hotel Reservations Ltd,13/03/2014,12/03/2014,KAA00000360100,KAA,Investigations -Management,3601,Police Subsistence Expenses,Accommodation
21/03/2014,0010255881,002,625.00,A P D Communications Ltd,24/03/2014,26/03/2014,T5A00000354200,T5A,Information Technology Airwave,3542,Airwave - Equipment Maintenance,Hot Standby TETRA Gateway 
12/02/2014,0010254013,001,613.81,Specialist Computer Centres Plc,26/02/2014,05/03/2014,G4AG9X00081100,G4A,Training & DevelopmentTraining Courses,0811,Training - Support Staff - External,"M10775, Administering Microsoft SQL"
12/02/2014,0010254015,001,613.81,Specialist Computer Centres Plc,26/02/2014,05/03/2014,G4AG9X00081100,G4A,Training & DevelopmentTraining Courses,0811,Training - Support Staff - External,Implementing a Data
24/02/2014,0010254901,001,613.81,Specialist Computer Centres Plc,13/03/2014,19/03/2014,G4AG9X00081100,G4A,Training & DevelopmentTraining Courses,0811,Training - Support Staff - External, Designing BusinessIntelligence Solutions With Microsoft
11/02/2014,0010254123,005,613.53,Airwave Solutions Ltd (Decision Focus),21/02/2014,27/02/2014,T5ATPK00354400,T5A,Information Technology Airwave,3544,Airwave - Running Costs,RENTAL CHARGES
11/03/2014,0010255557,001,613.28,British Gas Business,19/03/2014,19/03/2014,F5AB0500110000,F5A,Estates & Facilities ManagementEstates,1100,Electricity,Office Unit
10/02/2014,0010254641,001,612.50,4Ensicmed Ltd,06/03/2014,12/03/2014,KAA00000341200,KAA,Investigations -Management,3412,Doctors Fees,Medical Report
19/01/2014,0010252926,001,609.84,Specialist Computer Centres Plc,04/03/2014,05/03/2014,T2GTQG00350300,T2G,Information Technology Serv Delivery2,3503,Comms Equipment - Blackberry Charges,BlackBerry Soft Shell - protective coverfor cellular phone
28/02/2014,0010254699,004,609.69,Expotel Hotel Reservations Ltd,05/03/2014,05/03/2014,KAA00000230200,KAA,Investigations -Management,2302,Support Staff Travel Expenses,TRAVEL
27/02/2014,0010254892,006,606.00,Hi-Tec Sports Uk Ltd,13/03/2014,19/03/2014,W5B00000320000,W5B,Collaborative Services - Procurement - Stores,3200,Clothing & Uniforms - General,Classic CEN BootsSize 11
27/02/2014,0010254892,005,606.00,Hi-Tec Sports Uk Ltd,13/03/2014,19/03/2014,W5B00000320000,W5B,Collaborative Services - Procurement - Stores,3200,Clothing & Uniforms - General,Classic CEN BootsSize 10
07/10/2013,0010254630,001,604.95,Unipart Security,04/03/2014,05/03/2014,F5AB24001004AE,F5A,Estates & Facilities ManagementEstates,1004,"Building Maintenance - Equipment, Tools & Materials",Engineer call out 
14/02/2014,0010254003,003,602.00,Michael Lupton Associates Ltd,25/02/2014,05/03/2014,W5B00000322000,W5B,Collaborative Services - Procurement - Stores,3220,Clothing & Uniforms - PSU Clothing,Long VisorsFor Guardian Mk3 Helmets
20/02/2014,0010254331,002,600.66,Derby Unitex Ltd,19/03/2014,19/03/2014,WBA00000305400,WBA,Dogs,3054,Police Dogs - Other Expenses,"LINED COMBAT TROUSERS1 x Size 40""S (104S)3 x Size 38""R (96R)"
10/02/2014,0010253671,001,600.00,Nca National Crime Agency,25/02/2014,05/03/2014,KAA00000371200,KAA,Investigations -Management,3712,Subscriptions - Professional,Re-registration 
10/03/2014,0010255645,001,598.42,Volkswagen Group Uk Limited - Tps,18/03/2014,19/03/2014,F6B00000200100,F6B,FleetMarch Workshop,2001,Vehicle spares,STOCK(1)SET BRAKEPADS/BIN293/141.00(2)SENDERUNITS/BIN295/36.65(2)BRAKEDISCS/113.66
28/02/2014,0010254699,005,596.88,Expotel Hotel Reservations Ltd,05/03/2014,05/03/2014,T1A00000230200,T1A,IT Management,2302,Support Staff Travel Expenses,TRAVEL
11/03/2014,0010255542,001,594.29,British Gas Business,19/03/2014,19/03/2014,F5AB0600110000,F5A,Estates & Facilities ManagementEstates,1100,Electricity,Office Unit
19/02/2014,0010254306,005,592.60,Xma Limited,03/03/2014,12/03/2014,F5B8B000330000,F5B,Estates & Facilities ManagementStores,3300,Printing & Stationery - General,CARTRIDGE
11/02/2014,0010254123,004,591.74,Airwave Solutions Ltd (Decision Focus),21/02/2014,27/02/2014,T5ATIK00354400,T5A,Information Technology Airwave,3544,Airwave - Running Costs,RENTAL CHARGES
13/03/2014,0010255607,001,590.00,Grg Public Resources Ltd,25/03/2014,26/03/2014,Y6A00000341700,Y6A,Corporate CostsMiscellaneousCentral Costs,3417,Boarding & Glazing,4XBILLS
20/03/2014,0010256103,001,588.00,Key Forensic Services Ltd,25/03/2014,26/03/2014,WGA00000340000,WGA,Scientific Services,3400,Forensic Provider,BODY FLUID SEARCH/RECOVERY
06/03/2014,0010255218,003,587.25,Woodway Engineering Ltd,19/03/2014,19/03/2014,F6AVAB00850000,F6A,FleetHeadquarters,8500,Capital Expenditure Suspense,Micro-link switch. 
27/02/2014,0010254918,001,583.62,Foster Property Maintenance Ltd,13/03/2014,19/03/2014,F5AB5200100100,F5A,Estates & Facilities ManagementEstates,1001,Building Maintenance - Non Structural - Unplanned,"Pump out water in female side of wisbechcustody , also isolate damaged tap"
17/02/2014,0010254328,001,583.33,Bt Global Services,05/03/2014,12/03/2014,T2FTFR00350400,T2F,Information Technology Service Delivery,3504,Comms Equipment - Maintenance,EISEC RENTAL CHARGE HQ
23/04/2013,0010254356,001,582.25,Unipart Security,05/03/2014,05/03/2014,F5AB24001004AE,F5A,Estates & Facilities ManagementEstates,1004,"Building Maintenance - Equipment, Tools & Materials",Install Quasar wireless door units tolab machines
05/03/2014,0010255381,004,570.00,Arktis Limited,19/03/2014,19/03/2014,W5B00000321500,W5B,Collaborative Services - Procurement - Stores,3215,Clothing & Uniforms - TFU Clothing, Arktis Police CoatSize XLarge
31/01/2014,0010253924,008,568.65,Goodyear Ssc,05/03/2014,05/03/2014,F6B00000200200,F6B,FleetMarch Workshop,2002,Vehicle tyres,STOCK(3)265/50R19  110Y  EAG  F1  SUVAO  XLFP/568.65.
09/03/2014,0010255474,001,563.25,Bt (One Bill),18/03/2014,19/03/2014,T2G00000356100,T2G,Information Technology Serv Delivery2,3561,Telephone Rental,Broadband ConnectionsTSU-DB-Soham-Thorpe Wood
28/02/2014,0010254765,001,560.81,Volkswagen Group Uk Limited - Tps,06/03/2014,19/03/2014,F6C00000200100,F6C,FleetPeterborough Workshop,2001,Vehicle spares,(1)FLYWHEEL/340.44(1)CLUTCHKIT/176.69(1)CLUTCH KITSURCHARGE/37.15(2)SEAL WASHERS/6.53.
14/02/2014,0010253864,001,556.00,Pda Electronics Limited,03/03/2014,05/03/2014,KAA00000309300,KAA,Investigations -Management,3093,Other Equipment - Purchase,CPD196
06/03/2014,0010255218,002,554.62,Woodway Engineering Ltd,19/03/2014,19/03/2014,F6AVAB00850000,F6A,FleetHeadquarters,8500,Capital Expenditure Suspense,Alpha siren amplifiers.
12/02/2014,0010254542,001,554.24,Bright Hygiene Management (London) Ltd,03/03/2014,05/03/2014,F5A00000310000,F5A,Estates & Facilities ManagementEstates,3100,Catering Contract Charges,DEEP CLEAN THORPE WOOD KITCHEN 
17/02/2014,0010253947,003,553.00,Psl Print Management Ltd,19/02/2014,12/03/2014,F5B8B000332100,F5B,Estates & Facilities ManagementStores,3321,Printed Materials,500 X FORM 625 PETROL OIL & MILAGE LOG
10/02/2014,0010254012,001,552.63,Specialist Computer Centres Plc,19/02/2014,05/03/2014,LLA00000351000,LLA,Local Policing ,3510,Computer Hardware - Purchase,ThinkPad 
10/02/2014,0010254016,001,552.63,Specialist Computer Centres Plc,19/02/2014,05/03/2014,T2ETLF00850000,T2E,Information Technology Central Services,8500,Capital Expenditure Suspense,ThinkPad
05/03/2014,0010255353,001,552.63,Specialist Computer Centres Plc,18/03/2014,19/03/2014,W5B00000320000,W5B,Collaborative Services - Procurement - Stores,3200,Clothing & Uniforms - General,Lenovo ThinkPad 
05/03/2014,0010255217,001,550.00,Cim Holdings Ltd,19/03/2014,19/03/2014,G4AGEP00081100,G4A,Training & DevelopmentTraining Courses,0811,Training - Support Staff - External,An Overview to Strategic Marketing
11/02/2014,0010254036,001,549.93,Vodafone,26/02/2014,05/03/2014,T2G00000356200,T2G,Information Technology Serv Delivery2,3562,Telephone Calls,101 Call chargesFeb 2014
24/03/2014,0010255975,001,549.00,Tch (Uk) Limited,25/03/2014,26/03/2014,W5B00000320000,W5B,Collaborative Services - Procurement - Stores,3200,Clothing & Uniforms - General,Refurbishment of Rigid Cuffs
01/03/2014,0010255105,001,545.31,Edf Energy 1 Limited,13/03/2014,12/03/2014,F5AB2300110000,F5A,Estates & Facilities ManagementEstates,1100,Electricity,HAMPTON POLICE STATION
03/03/2014,0010255053,001,540.00,Sarunas Jarmalavicius,07/03/2014,19/03/2014,KBEJ2X00341100,KBE,Investigations -Interpreters,3411,Interpreters Fees,COVERT WORK
13/01/2014,0010254683,001,538.01,Ricoh Uk Ltd,04/03/2014,05/03/2014,LLA00000331100,LLA,Local Policing ,3311,Photocopier Copy Charges,MFD Usage for V1203200788Parkside Police Station 
18/02/2014,0010254464,001,535.33,Gladwins  Ltd,04/03/2014,12/03/2014,F4B000008610BN,F4B,FinanceInsurance,8610,Insurance repairs,Vehicle Repairs
05/02/2014,0010254738,001,535.00,Sunline Blinds Limited,13/03/2014,12/03/2014,LLA00000150000,LLA,Local Policing ,1500,Fixtures & Fittings - Purchase,To Supply & Fit Verticle Blinds to 6 xWindows at Hampton Police Station 
31/10/2013,0010255431,001,531.81,Peterborough Laundry Services Ltd,17/03/2014,19/03/2014,LLA00000323000,LLA,Local Policing ,3230,Hired Services - Laundry,"Provision of Laundry Services for ThorpeWood, Parkside & Huntingdon Custody -October 2013 "
21/02/2014,0010254370,001,528.55,Unipart Security,03/03/2014,05/03/2014,F5AB5200100400,F5A,Estates & Facilities ManagementEstates,1004,"Building Maintenance - Equipment, Tools & Materials"," Gate staying open, arm seizing up. Replace gate armbalance "
18/03/2014,0010255991,001,526.50,Specialist Computer Centres Plc,26/03/2014,26/03/2014,T1A00000351000,T1A,IT Management,3510,Computer Hardware - Purchase,BUFFALO MediaStation 8x Portable DVDWriter with LED Power Indicator
28/02/2014,0010255142,001,525.00,Alere Toxicology Plc,07/03/2014,19/03/2014,H5A00000344200,H5A,HROccupational Health,3442,Occupational Health,pre-employment drugs testing 
28/02/2014,0010255014,001,523.75,Key Forensic Services Ltd,07/03/2014,19/03/2014,WGA00000340000,WGA,Scientific Services,3400,Forensic Provider,DNA CRIME SCENE STAINS
28/02/2014,0010254829,001,522.11,The Landscape Group Limited,13/03/2014,19/03/2014,LLA00000170000,LLA,Local Policing ,1700,Grounds Maintenance,GROUNDS MAINTENANCE AREAS 2/3/4 FEBRUARY2014
17/01/2014,0010255189,001,519.20,Indicator Ltd,13/03/2014,12/03/2014,H1A00000371200,H1A,HRManagement,3712,Subscriptions - Professional,Online Employment Memo 2014 package
10/03/2014,0010255340,001,518.72,Corona Energy Retail 4 Buying Solutions,18/03/2014,19/03/2014,F5AB3800110100,F5A,Estates & Facilities ManagementEstates,1101,Gas - Mains,POLICE STATION BLENHEIM ROAD
06/03/2014,0010255297,001,515.51,Hereward Car & Truck,17/03/2014,19/03/2014,F6C00000309100,F6C,FleetPeterborough Workshop,3091,Small Tools,PETERBOROUGH WORKSHOP TOOLS 
10/03/2014,0010255332,001,514.37,Corona Energy Retail 4 Buying Solutions,18/03/2014,19/03/2014,F5AB2200110100,F5A,Estates & Facilities ManagementEstates,1101,Gas - Mains,POLICE STATION ELY
28/02/2014,0010255194,001,514.00,Orchid Cellmark Ltd,13/03/2014,19/03/2014,WGA00000340000,WGA,Scientific Services,3400,Forensic Provider,PARENT INVOICE FORENSIC SERVICES
21/02/2014,0010254437,001,503.04,Foster Property Maintenance Ltd,05/03/2014,12/03/2014,F5AB3200100100,F5A,Estates & Facilities ManagementEstates,1001,Building Maintenance - Non Structural - Unplanned,URGENT - drain covers have dropped. Pleasere-level and make any repairs.
08/05/2013,0010254363,001,501.96,Unipart Security,05/03/2014,05/03/2014,F5AB02001004AE,F5A,Estates & Facilities ManagementEstates,1004,"Building Maintenance - Equipment, Tools & Materials",install ethernet modules andprogram
11/03/2014,0010255554,001,501.77,British Gas Business,19/03/2014,19/03/2014,F5AB2600110000,F5A,Estates & Facilities ManagementEstates,1100,Electricity,HISTON STATION
31/01/2014,0010253448,001,501.28,Castrol (U K)  Ltd,27/02/2014,05/03/2014,F6B00000200400,F6B,FleetMarch Workshop,2004,Vehicle lubricants,STOCK(1)208L BARREL EDGE 5W-30/501.28.
10/02/2014,0010254392,001,501.28,Castrol (U K)  Ltd,05/03/2014,05/03/2014,F6C00000200400,F6C,FleetPeterborough Workshop,2004,Vehicle lubricants,STOCK(1)208L EDGE 5W-30/501.28.
24/03/2014,0010255884,001,500.00,M Penhaligon,25/03/2014,26/03/2014,H5A00000344100,H5A,HROccupational Health,3441,Counselling Costs,sessions of counselling
13/03/2014,0010255728,001,500.00,Emmanuel College,19/03/2014,26/03/2014,LLA00000342200,LLA,Local Policing ,3422,Casual Hire of Rooms,Hire of venue for Cambridge CityNeighbourhood Team Development Day
